Workbook

Sheet AER Final Decision changes
A1: Cells | B1: Decription of changes
A2: 'Cost Escalations' - row 3 | B2: Updated actual CPI in cells E3:F3 and forecast CPI in cell G3.
A3: 'Cost Escalations' - row 29 | B3: Substituted with our labour escalators consistent with ANS. | D3: Source - https://www.rba.gov.au/publications/smp/2025/feb/

Sheet Cover page
A2: Energex Public Lighting Capex and Opex Forecasting Model
A3: 2025-30

Sheet Version Control
A1: RDP2025 Project: Public Lighting Expenditure Analysis Model
B4: Date | C4: Version | D4: Description of any updates made
B5: 2024-01-31 | C5: V1 | D5: Version submitted to the AER
B6: 2024-08-21 | C6: V2 | D6: AER - updated inflation figures and labour escalators
B7: 2024-11-26 | C7: V3 | D7: RRP version - updated volumes for actuals and revised labour escalators

Sheet Intro
A1: Model developer | B1: Energex
A5: Purpose | B5: To provide capex and opex forecasts based on the 100% LED deployment during 2025-30 regulatory period.
A7: Colour chart | B7: Data | C7: Cells containing hard coded data
C8: Cell containing formula
C9: Cells to remain empty (non-applicable input/output)
B10: Assumptions | C10: Cells containing assumptions intended to be manipulated by model users
B11: Text | C11: Important notes providing details
C12: Cell highlighting particular attention
B13: Header 1 | C13: Fist header
B14: Header 2 | C14: Second header
B15: Header 3 | C15: Third hearder

Sheet >>General inputs

Sheet Cost Escalations
B1: 2019-20 | C1: 2020-21 | D1: 2021-22 | E1: 2022-23 | F1: 2023-24 | G1: 2024-25
B2: 2020-06-01 | C2: 2021-06-01 | D2: 2022-06-01 | E2: 2023-06-01 | F2: 2024-06-01 | G2: 2025-06-01
A3: Inflation | B3: -0.003484320557 | C3: 0.03846153846 | D3: 0.06144781145 | E3: 0.06 | F3: 0.038 | G3: 0.024 | J3: Sources used | L3: https://www.rba.gov.au/publications/smp/2025/feb/
L4: https://www.abs.gov.au/statistics/economy/price-indexes-and-inflation/consumer-price-index-australia/jun-quarter-2024
A5: Real to Real
B6: 2020-06-01 | C6: 2021-06-01 | D6: 2022-06-01 | E6: 2023-06-01 | F6: 2024-06-01 | G6: 2025-06-01
A7: 2020-06-01 | B7: =IF(AND($A7>B$6,ISNONTEXT($A7)),C7/(1+C$3),IF(AND($A7=B$6,B$6=B$2),1,IF(AND($A7<B$6,B$6=B$2),#REF!*(1+B$3),0))) -> 1 | C7: =IF(AND($A7>C$6,ISNONTEXT($A7)),D7/(1+D$3),IF(AND($A7=C$6,C$6=C$2),1,IF(AND($A7<C$6,C$6=C$2),B7*(1+C$3),0))) -> 1.038461538 | D7: 1.102272727 | E7: 1.168409091 | F7: 1.212808636 | G7: =IF(AND($A7>G$6,ISNONTEXT($A7)),'EGX - Gross Capex'!P8/(1+'EGX - Gross Capex'!P$4),IF(AND($A7=G$6,G$6=G$2),1,IF(AND($A7<G$6,G$6=G$2),F7*(1+G$3),0))) -> 1.241916044
A8: 2021-06-01 | B8: =IF(AND($A8>B$6,ISNONTEXT($A8)),C8/(1+C$3),IF(AND($A8=B$6,B$6=B$2),1,IF(AND($A8<B$6,B$6=B$2),#REF!*(1+B$3),0))) -> 0.962962963 | C8: 1 | D8: 1.061447811 | E8: 1.12513468 | F8: 1.167889798 | G8: =IF(AND($A8>G$6,ISNONTEXT($A8)),'EGX - Gross Capex'!P10/(1+'EGX - Gross Capex'!P$4),IF(AND($A8=G$6,G$6=G$2),1,IF(AND($A8<G$6,G$6=G$2),F8*(1+G$3),0))) -> 1.195919153
A9: 2022-06-01 | B9: =IF(AND($A9>B$6,ISNONTEXT($A9)),C9/(1+C$3),IF(AND($A9=B$6,B$6=B$2),1,IF(AND($A9<B$6,B$6=B$2),#REF!*(1+B$3),0))) -> 0.9072164948 | C9: 0.942109437 | D9: 1 | E9: 1.06 | F9: =IF(AND($A9>F$6,ISNONTEXT($A9)),G9/(1+G$3),IF(AND($A9=F$6,F$6=F$2),1,IF(AND($A9<F$6,F$6=F$2),E9*(1+F$3),0))) -> 1.10028 | G9: =IF(AND($A9>G$6,ISNONTEXT($A9)),'EGX - Gross Capex'!#REF!/(1+'EGX - Gross Capex'!P$4),IF(AND($A9=G$6,G$6=G$2),1,IF(AND($A9<G$6,G$6=G$2),F9*(1+G$3),0))) -> 1.12668672
A10: 2023-06-01 | B10: =IF(AND($A10>B$6,ISNONTEXT($A10)),C10/(1+C$3),IF(AND($A10=B$6,B$6=B$2),1,IF(AND($A10<B$6,B$6=B$2),#REF!*(1+B$3),0))) -> 0.8558646178 | C10: 0.8887824877 | D10: 0.9433962264 | E10: 1 | F10: 1.038 | G10: =IF(AND($A10>G$6,ISNONTEXT($A10)),'EGX - Gross Capex'!P12/(1+'EGX - Gross Capex'!P$4),IF(AND($A10=G$6,G$6=G$2),1,IF(AND($A10<G$6,G$6=G$2),F10*(1+G$3),0))) -> 1.062912
A11: 2024-06-01 | B11: =IF(AND($A11>B$6,ISNONTEXT($A11)),C11/(1+C$3),IF(AND($A11=B$6,B$6=B$2),1,IF(AND($A11<B$6,B$6=B$2),#REF!*(1+B$3),0))) -> 0.8245323871 | C11: 0.8562451712 | D11: 0.908859563 | E11: 0.9633911368 | F11: 1 | G11: =IF(AND($A11>G$6,ISNONTEXT($A11)),'EGX - Gross Capex'!P20/(1+'EGX - Gross Capex'!P$4),IF(AND($A11=G$6,G$6=G$2),1,IF(AND($A11<G$6,G$6=G$2),F11*(1+G$3),0))) -> 1.024
A12: 2025-06-01 | B12: =IF(AND($A12>B$6,ISNONTEXT($A12)),C12/(1+C$3),IF(AND($A12=B$6,B$6=B$2),1,IF(AND($A12<B$6,B$6=B$2),#REF!*(1+B$3),0))) -> 0.8052074092 | C12: 0.836176925 | D12: 0.887558167 | E12: 0.940811657 | F12: 0.9765625 | G12: =IF(AND($A12>G$6,ISNONTEXT($A12)),'EGX - Gross Capex'!P21/(1+'EGX - Gross Capex'!P$4),IF(AND($A12=G$6,G$6=G$2),1,IF(AND($A12<G$6,G$6=G$2),F12*(1+G$3),0))) -> 1
A14: Nominal to Real
B15: 2020-06-01 | C15: 2021-06-01 | D15: 2022-06-01 | E15: 2023-06-01 | F15: 2024-06-01 | G15: 2025-06-01
A16: 2020-06-01 | B16: =IF(AND(B$15=B$2,ISNONTEXT($A16)),1/B7*(1+B$3)^0.5,0) -> 0.9982563195 | C16: =IF(AND(C$15=C$2,ISNONTEXT($A16)),1/C7*(1+C$3)^0.5,0) -> 0.9813067629 | D16: =IF(AND(D$15=D$2,ISNONTEXT($A16)),1/D7*(1+D$3)^0.5,0) -> 0.9346742127 | E16: 0.8811665555 | F16: 0.8400524366 | G16: 0.8148126087
A17: 2021-06-01 | B17: =IF(AND(B$15=B$2,ISNONTEXT($A17)),1/B8*(1+B$3)^0.5,0) -> 1.036650793 | C17: 1.019049331 | D17: 0.9706232209 | E17: 0.9150575769 | F17: 0.8723621457 | G17: 0.8461515551
A18: 2022-06-01 | B18: 1.100350716 | C18: 1.081667682 | D18: 1.030265894 | E18: 0.9712858624 | F18: 0.9259668904 | G18: 0.8981457164
A19: 2023-06-01 | B19: 1.166371759 | C19: 1.146567743 | D19: 1.092081847 | E19: 1.029563014 | F19: 0.9815249038 | G19: 0.9520344593
A20: 2024-06-01 | B20: 1.210693886 | C20: 1.190137317 | D20: 1.133580957 | E20: 1.068686409 | F20: 1.01882285 | G20: 0.9882117688
A21: 2025-06-01 | B21: 1.239750539 | C21: 1.218700613 | D21: 1.1607869 | E21: 1.094334882 | F21: 1.043274599 | G21: 1.011928851
A23: Real escalation
A24: Contractor | B24: 2025-26 | C24: 2026-27 | D24: 2027-28 | E24: 2028-29 | F24: 2029-30
A25: Escalation - Year on Year | B25: 0.0105 | C25: 0.0071 | D25: 0.0061 | E25: 0.0092 | F25: 0.0109 | G25: Source: BISOE report
A26: Escalation - Cumulative | B26: =PRODUCT(1+$B25:B25)-1 -> 0.0105 | C26: =PRODUCT(1+$B25:C25)-1 -> 0.01767455 | D26: =PRODUCT(1+$B25:D25)-1 -> 0.02388236475 | E26: =PRODUCT(1+$B25:E25)-1 -> 0.03330208251 | F26: =PRODUCT(1+$B25:F25)-1 -> 0.04456507521
A28: Labour | B28: 2025-26 | C28: 2026-27 | D28: 2027-28 | E28: 2028-29 | F28: 2029-30
A29: Escalation - Year on Year | B29: 0.01108542632 | C29: 0.01087009067 | D29: 0.008746627838 | E29: 0.009531573652 | F29: 0.01151592523 | J29: Source used | L29: Average Oxford Economics & DEA + Super guarantee value
A30: Escalation - Cumulative | B30: =PRODUCT(1+$B29:B29)-1 -> 0.01108542632 | C30: =PRODUCT(1+$B29:C29)-1 -> 0.02207601657 | D30: =PRODUCT(1+$B29:D29)-1 -> 0.03101573511 | E30: =PRODUCT(1+$B29:E29)-1 -> 0.04084293753 | F30: =PRODUCT(1+$B29:F29)-1 -> 0.05282920697

Sheet Ratios & Assumptions
A1: Table 1 - EGX ratios between major and minor roads
C2: 2025-26
A3: DNSP | B3: Road type | C3: Volume | D3: Ratio
A4: Energex | B4: Major | C4: =SUMIF('EGX - Yearly volume scenarios'!$C$5:$C$12,'Ratios & Assumptions'!$B4,'EGX - Yearly volume scenarios'!$G$5:$G$12) -> 97805 | D4: =C4/$C$6 -> 0.2849995338
A5: Energex | B5: Minor | C5: =SUMIF('EGX - Yearly volume scenarios'!$C$5:$C$12,'Ratios & Assumptions'!$B5,'EGX - Yearly volume scenarios'!$G$5:$G$12) -> 245371 | D5: =C5/$C$6 -> 0.7150004662
A6: Energex | B6: All | C6: =SUM(C4:C5) -> 343176 | D6: =SUM(D4:D5) -> 1
A7: Note:
A8: Allocation based on actual 2021-22 volumes
A9: Used to allocate expenditure between major and minor road types where the breakdown is not available
A11: Table 2 - EGX estimated annual growth rates
A12: DNSP | B12: Road | C12: Rate | D12: Rate
A13: All | B13: All | C13: 1 | D13: 0.025
A14: All | B14: All | C14: 2 | D14: 0.015
A15: Note:
A16: Different growth rates for Rate 1 and Rate 2

Sheet Overheads
A1: Table 1 - EGX Labour Oncosts
A2: DNSP | B2: Cost type | C2: Cost recovery | D2: FY2023
A3: Energex | B3: Labour Oncosts | C3: Labour only | D3: 0
A4: Energex | B4: All | C4: All | D4: =SUM(D3) -> 0
A6: Table 2 - EGX Material Oncosts
A7: DNSP | B7: Cost type | C7: Cost recovery | D7: FY2023
A8: Energex | B8: Material Oncosts | C8: Material only | D8: 0.08716716242
A9: Energex | B9: All | C9: All | D9: =SUM(D8) -> 0.08716716242
A11: Table 3 - EGX Fleet Oncosts
A12: DNSP | B12: Cost type | C12: Cost recovery | D12: FY2023
A13: Energex | B13: Fleet Oncost Indirects | C13: Labour only | D13: 0.1266957608
A14: Energex | B14: Fleet Oncost Depreciation | C14: Labour only | D14: 0.08494458414
A15: Energex | B15: All | C15: All | D15: =SUM(D13:D14) -> 0.2116403449
A17: Table 4 - EGX Network and Non-network Overheads
A18: DNSP | B18: Cost type | C18: Cost recovery | D18: FY2023
A19: Energex | B19: Network Overhead | C19: All Direct costs + Oncosts | D19: 0.1988679367
A20: Energex | B20: Non Network Overhead | C20: Labour only | D20: 0.4384935866
A21: Energex | B21: All | C21: All | D21: =SUM(D19:D20) -> 0.6373615233
A23: Table 5 - EGX Other Allocations
A24: DNSP | B24: Cost type | C24: Cost recovery | D24: FY2023
A25: Energex | B25: Non Network Depreciation | C25: Labour only | D25: 0.1470651253
A26: Energex | B26: Corporate Overhead | C26: All Direct Costs + Oncosts | D26: 0.1259652986
A27: Energex | B27: Market | C27: All Direct Costs + Oncosts | D27: 0.007240438044
A28: Energex | B28: Customer Ops | C28: All Direct Costs + Oncosts | D28: 0.06061743643
A29: Energex | B29: All | C29: All | D29: =SUM(D25:D28) -> 0.3408882984

Sheet >>Volumes

Sheet EGX - Yearly volume scenarios
A1: Table 1 - EGX Total public lighting asset base by tariffs to be converted from CONV to LED- yearly data as at 30 June | K1: 100% LED deployment by 2030
A2: 1.a - Number of public lights for LED conversion | E2: Previous period | F2: Current period | K2: Forthcoming period
E3: Actual | F3: Actual | G3: Actual | H3: Actual | I3: Actual | J3: Forecast | K3: Forecast | L3: Forecast | M3: Forecast | N3: Forecast | O3: Forecast
A4: DNSP | B4: Rate | C4: Road type | D4: Light type | E4: 2019-20 | F4: 2020-21 | G4: 2021-22 | H4: 2022-23 | I4: 2023-24 | J4: 2024-25 | K4: 2025-26 | L4: 2026-27 | M4: 2027-28 | N4: 2028-29 | O4: 2029-30
A5: Energex | B5: 1 | C5: Major | D5: CONV | E5: 39166 | F5: 38542 | G5: 38010 | H5: 37498 | I5: 36395 | J5: 30329 | K5: 24263 | L5: 18198 | M5: 12132 | N5: 6066 | O5: 0
A6: Energex | B6: 1 | C6: Major | D6: LED | E6: 1477 | F6: 2306 | G6: 3113 | H6: 3757 | I6: 4636 | J6: 10702 | K6: 16768 | L6: 22833 | M6: 28899 | N6: 34965 | O6: 41031
A7: Energex | B7: 1 | C7: Minor | D7: CONV | E7: 104697 | F7: 102204 | G7: 95466 | H7: 88231 | I7: 74605 | J7: 62171 | K7: 49737 | L7: 37303 | M7: 24869 | N7: 12434 | O7: 0 | P7: Removes the Nostalgia as these are to be converted to LED (see Table 3 below)
A8: Energex | B8: 1 | C8: Minor | D8: LED | E8: 4798 | F8: 7287 | G8: 13986 | H8: 20958 | I8: 34586 | J8: 47020 | K8: 59454 | L8: 71888 | M8: 84322 | N8: 96757 | O8: 109191
A9: Energex | B9: 2 | C9: Major | D9: CONV | E9: 52820 | F9: 52615 | G9: 52158 | H9: 51753 | I9: 50794 | J9: 42328 | K9: 33863 | L9: 25397 | M9: 16931 | N9: 8466 | O9: 0
A10: Energex | B10: 2A | C10: Major | D10: LED | E10: 2101 | F10: 3389 | G10: 4524 | H10: 5879 | I10: 8318 | J10: 16784 | K10: 25249 | L10: 33715 | M10: 42181 | N10: 50646 | O10: 59112
A11: Energex | B11: 2 | C11: Minor | D11: CONV | E11: 126472 | F11: 125346 | G11: 115984 | H11: 103136 | I11: 78710 | J11: 65592 | K11: 52473 | L11: 39355 | M11: 26237 | N11: 13118 | O11: 0 | P11: Removes the Nostalgia as these are to be converted to LED (see Table 3 below)
A12: Energex | B12: 2A | C12: Minor | D12: LED | E12: 6059 | F12: 8985 | G12: 19935 | H12: 35097 | I12: 62195 | J12: 75313 | K12: 88432 | L12: 101550 | M12: 114668 | N12: 127787 | O12: 140905
A13: Energex | B13: All | C13: All | D13: CONV | E13: =E5+E7+E9+E11 -> 323155 | F13: 318707 | G13: 301618 | H13: 280618 | I13: 240504 | J13: 200420 | K13: 160336 | L13: 120253 | M13: 80169 | N13: 40084 | O13: 0
A14: Energex | B14: All | C14: All | D14: LED | E14: =E6+E8+E10+E12 -> 14435 | F14: =F6+F8+F10+F12 -> 21967 | G14: =G6+G8+G10+G12 -> 41558 | H14: 65691 | I14: 109735 | J14: 149819 | K14: 189903 | L14: 229986 | M14: 270070 | N14: 310155 | O14: 350239
A15: Energex | B15: All | C15: All | D15: All | E15: =E13+E14 -> 337590 | F15: =F13+F14 -> 340674 | G15: 343176 | H15: 346309 | I15: 350239 | J15: 350239 | K15: =SUM(K5:K12) -> 350239 | L15: =SUM(L5:L12) -> 350239 | M15: =SUM(M5:M12) -> 350239 | N15: =SUM(N5:N12) -> 350239 | O15: =SUM(O5:O12) -> 350239
A16: Energex | B16: All | C16: All | D16: LED | E16: =E14/E15 -> 0.04275896798 | F16: =F14/F15 -> 0.06448099943 | G16: 0.121098212 | H16: 0.1896889772 | I16: 0.3133146223 | J16: 0.4277621853 | K16: =K14/K15 -> 0.5422097482 | L16: 0.656654456 | M16: 0.7711020189 | N16: 0.8855524371 | O16: =O14/O15 -> 1
A17: Notes:
A18: CONV Minor volumes exclude Nostalgia volumes which are being converted to LED (see volumes in Table 4)
A19: No growth assumed for CONV to LED conversion program as the conversions are intended for the existing fleet of assets
A20: All Rate 1 CONV lights converted to LED remain Rate 1
A21: All Rate 2 CONV lights converted to LED and funded by ERG, will be assigned to Rate 2A
A23: Table 1.b - EGX Number of LED luminaire conversions each year | K23: 100% LED deployment by 2030
E24: Previous period | F24: Current period | K24: Forthcoming period
E25: Actual | F25: Actual | G25: Actual | H25: Actual | I25: Actual | J25: Forecast | K25: Forecast | L25: Forecast | M25: Forecast | N25: Forecast | O25: Forecast
A26: DNSP | B26: Rate | C26: Road type | D26: Light type | E26: 2019-20 | F26: 2020-21 | G26: 2021-22 | H26: 2022-23 | I26: 2023-24 | J26: 2024-25 | K26: 2025-26 | L26: 2026-27 | M26: 2027-28 | N26: 2028-29 | O26: 2029-30
A27: Energex | B27: 1 | C27: Major | D27: LED | F27: =F6-E6 -> 829 | G27: 807 | H27: 644 | I27: 879 | J27: 6066 | K27: 6066 | L27: 6065 | M27: 6066 | N27: 6066 | O27: 6066
A28: Energex | B28: 1 | C28: Minor | D28: LED | F28: =F8-E8 -> 2489 | G28: 6699 | H28: 6972 | I28: 13628 | J28: 12434 | K28: 12434 | L28: 12434 | M28: 12434 | N28: 12435 | O28: 12434
A29: Energex | B29: 2A | C29: Major | D29: LED | F29: =F10-E10 -> 1288 | G29: 1135 | H29: 1355 | I29: 2439 | J29: 8466 | K29: 8465 | L29: 8466 | M29: 8466 | N29: 8465 | O29: 8466
A30: Energex | B30: 2A | C30: Minor | D30: LED | F30: =F12-E12 -> 2926 | G30: 10950 | H30: 15162 | I30: 27098 | J30: 13118 | K30: 13119 | L30: 13118 | M30: 13118 | N30: 13119 | O30: 13118
A31: Energex | B31: All | C31: All | D31: LED | F31: =SUM(F27:F30) -> 7532 | G31: 19591 | H31: 24133 | I31: 44044 | J31: 40084 | K31: 40084 | L31: 40083 | M31: 40084 | N31: 40085 | O31: 40084
D32: Total LED volume | F32: =E14+F31 -> 21967 | G32: 41558 | H32: 65691 | I32: 109735 | J32: 149819 | K32: 189903 | L32: 229986 | M32: 270070 | N32: 310155 | O32: 350239
D33: Check | J33: Check | K33: =IF(K14-K32=0,0,1) -> 0 | L33: =IF(L14-L32=0,0,1) -> 1 | M33: =IF(M14-M32=0,0,1) -> 0 | N33: =IF(N14-N32=0,0,1) -> 0 | O33: =IF(O14-O32=0,0,1) -> 0
C34: Proportions | D34: LED | E34: Rate 1 | F34: =SUM(F27:F28)/SUM(F27:F30) -> 0.4405204461 | G34: 0.3831351131 | H34: 0.3155844694 | I34: 0.3293751703 | J34: 0.4615307854 | K34: 0.4615307854 | L34: 0.4615173515 | M34: 0.4615307854 | N34: 0.4615442185 | O34: 0.4615307854
E35: Rate2A | F35: =1-F34 -> 0.5594795539 | G35: =1-G34 -> 0.6168648869 | H35: 0.6844155306 | I35: 0.6706248297 | J35: 0.5384692146 | K35: =1-K34 -> 0.5384692146 | L35: 0.5384826485 | M35: 0.5384692146 | N35: 0.5384557815 | O35: 0.5384692146
A38: Table 1.c - EGX smoothed LED luminaire replacement volume/year (ensure the capex is smoothed over the 5 year cycle) | K38: 100% LED deployment by 2030
E39: Previous period | F39: Current period | K39: Forthcoming period
E40: Actual | F40: Actual | G40: Actual | H40: Forecast | I40: Forecast | J40: Forecast | K40: Forecast | L40: Forecast | M40: Forecast | N40: Forecast | O40: Forecast
A41: DNSP | B41: Rate | C41: Road type | D41: Light type | E41: 2019-20 | F41: 2020-21 | G41: 2021-22 | H41: 2022-23 | I41: 2023-24 | J41: 2024-25 | K41: 2025-26 | L41: 2026-27 | M41: 2027-28 | N41: 2028-29 | O41: 2029-30
A42: Energex | B42: 1 | C42: Major | D42: LED | K42: =ROUND(SUM($K27:$O27)/5,0) -> 6066 | L42: 6066 | M42: 6066 | N42: 6066 | O42: 6066
A43: Energex | B43: 1 | C43: Minor | D43: LED | K43: 12434 | L43: 12434 | M43: 12434 | N43: 12434 | O43: 12434
A44: Energex | B44: 2A | C44: Major | D44: LED | K44: 8466 | L44: 8466 | M44: 8466 | N44: 8466 | O44: 8466
A45: Energex | B45: 2A | C45: Minor | D45: LED | K45: 13118 | L45: 13118 | M45: 13118 | N45: 13118 | O45: 13118
A46: Energex | B46: All | C46: All | D46: LED | K46: =SUM(K42:K45) -> 40084 | L46: =SUM(L42:L45) -> 40084 | M46: =SUM(M42:M45) -> 40084 | N46: =SUM(N42:N45) -> 40084 | O46: =SUM(O42:O45) -> 40084
A47: Note:
A48: This table is based on Table 2 and smoothes the number of lights being converted a consistent yearly deployment
K51: 100% LED deployment by 2030
A52: 2- New public light intallations | E52: Previous period | F52: Current period | K52: Forthcoming period
E53: Actual | F53: Actual | G53: Actual | H53: Actual | I53: Actual | J53: Forecast | K53: Forecast | L53: Forecast | M53: Forecast | N53: Forecast | O53: Forecast
A54: DNSP | B54: Rate | C54: Road type | D54: Light type | E54: 2019-20 | F54: 2020-21 | G54: 2021-22 | H54: 2022-23 | I54: 2023-24 | J54: 2024-25 | K54: 2025-26 | L54: 2026-27 | M54: 2027-28 | N54: 2028-29 | O54: 2029-30
A55: Energex | B55: 1 | C55: Major | D55: LED | E55: 228 | F55: 280 | G55: 273 | H55: 214 | I55: 127 | J55: =ROUND(I55*(1+'Ratios & Assumptions'!$D$13),0) -> 130 | K55: =ROUND(J55*(1+'Ratios & Assumptions'!$D$13),0) -> 133 | L55: =ROUND(K55*(1+'Ratios & Assumptions'!$D$13),0) -> 136 | M55: =ROUND(L55*(1+'Ratios & Assumptions'!$D$13),0) -> 139 | N55: =ROUND(M55*(1+'Ratios & Assumptions'!$D$13),0) -> 142 | O55: =ROUND(N55*(1+'Ratios & Assumptions'!$D$13),0) -> 146
B56: 1 | C56: Minor | D56: LED | E56: 318 | F56: 267 | G56: 338 | H56: 324 | I56: 310 | J56: =ROUND(I56*(1+'Ratios & Assumptions'!$D$14),0) -> 315 | K56: =ROUND(J56*(1+'Ratios & Assumptions'!$D$14),0) -> 320 | L56: =ROUND(K56*(1+'Ratios & Assumptions'!$D$14),0) -> 325 | M56: =ROUND(L56*(1+'Ratios & Assumptions'!$D$14),0) -> 330 | N56: =ROUND(M56*(1+'Ratios & Assumptions'!$D$14),0) -> 335 | O56: =ROUND(N56*(1+'Ratios & Assumptions'!$D$14),0) -> 340
A57: Energex | B57: All | C57: All | D57: LED | E57: =SUM(E55:E56) -> 546 | F57: 547 | G57: 611 | H57: 538 | I57: 437 | J57: 445 | K57: 453 | L57: 461 | M57: 469 | N57: 477 | O57: 486
A58: Notes:
A59: All new installations are assumed to be LEDs
A60: Actual Rate 1 figures (2019-20 to 2021-22) are sourced from the Category Analysis RIN
K61: 100% LED deployment by 2030
A62: 3 - Conversion of Nostalgia lights from CONV to LED | E62: Previous period | F62: Current period | K62: Forthcoming period
E63: Actual | F63: Actual | G63: Actual | H63: Actual | I63: Actual | J63: Forecast | K63: Forecast | L63: Forecast | M63: Forecast | N63: Forecast | O63: Forecast
A64: DNSP | B64: Rate | C64: Road type | D64: Light type | E64: 2019-20 | F64: 2020-21 | G64: 2021-22 | H64: 2022-23 | I64: 2023-24 | J64: 2024-25 | K64: 2025-26 | L64: 2026-27 | M64: 2027-28 | N64: 2028-29 | O64: 2029-30
A65: Energex | B65: 1 | C65: Minor | D65: LED | K65: 108 | L65: 108 | M65: 108 | N65: 108 | O65: 108
B66: 2A | C66: Minor | D66: LED | K66: =8275-K65 -> 8167 | L66: 8167 | M66: 8167 | N66: =8275-N65 -> 8167 | O66: =8275-O65 -> 8167
A67: Energex | B67: All | C67: All | D67: LED | K67: =SUM(K65:K66) -> 8275 | L67: 8275 | M67: 8275 | N67: 8275 | O67: 8275
A68: Notes: | O68: =SUM(K67:O67) -> 41375
A69: Convert remaining 41375 Nostalgia lamps to LEDs over the 2025-30 period
A70: Existing Rate 2 Nostalgia lights converted to LED and funded by Ergon. Once converted the assets are assigned to Rate 2A
K71: 100% LED deployment by 2030
A72: 4 - Total public lighting asset base (table 1.a, table 2 and table 3 combined) | E72: Previous period | F72: Current period | K72: Forthcoming period
E73: Actual | F73: Actual | G73: Actual | H73: Forecast | I73: Forecast | J73: Forecast | K73: Forecast | L73: Forecast | M73: Forecast | N73: Forecast | O73: Forecast
A74: DNSP | B74: Rate | C74: Road type | D74: Light type | E74: 2019-20 | F74: 2020-21 | G74: 2021-22 | H74: 2022-23 | I74: 2023-24 | J74: 2024-25 | K74: 2025-26 | L74: 2026-27 | M74: 2027-28 | N74: 2028-29 | O74: 2029-30
A75: Energex | B75: 1 | C75: Major | D75: CONV | F75: =F5 -> 38542 | G75: 38010 | H75: 37498 | I75: 36395 | J75: 30329 | K75: 24263 | L75: 18198 | M75: 12132 | N75: 6066 | O75: 0
A76: Energex | B76: 1 | C76: Major | D76: LED | F76: =F6+F55 -> 2586 | G76: =G6+G55 -> 3386 | H76: =H6+H55 -> 3971 | I76: =I6+SUM(H55:I55) -> 4977 | J76: =J6+SUM(H55:J55) -> 11173 | K76: =K6+K55 -> 16901 | L76: =L6+SUM(K55:L55) -> 23102 | M76: =M6+SUM(K55:M55) -> 29307 | N76: =N6+SUM(K55:N55) -> 35515 | O76: =O6+SUM(K55:O55) -> 41727
A77: Energex | B77: 1 | C77: Minor | D77: CONV | F77: =F7 -> 102204 | G77: 95466 | H77: 88231 | I77: 74605 | J77: 62171 | K77: 49737 | L77: 37303 | M77: 24869 | N77: 12434 | O77: 0
A78: Energex | B78: 1 | C78: Minor | D78: LED | F78: =F8+F56 -> 7554 | G78: =G8+G56 -> 14324 | H78: =H8+H56 -> 21282 | I78: =I8+SUM(H56:I56) -> 35220 | J78: =J8+SUM(H56:J56) -> 47969 | K78: =K8+K56+K65 -> 59882 | L78: =L8+SUM(K56:L56)+L65 -> 72641 | M78: =M8+SUM(K56:M56)+M65 -> 85405 | N78: =N8+SUM(K56:N56)+N65 -> 98175 | O78: =O8+SUM(K56:O56)+O65 -> 110949
A79: Energex | B79: 2 | C79: Major | D79: CONV | F79: =F9 -> 52615 | G79: 52158 | H79: 51753 | I79: 50794 | J79: 42328 | K79: 33863 | L79: 25397 | M79: 16931 | N79: 8466 | O79: 0
A80: Energex | B80: 2A | C80: Major | D80: LED | F80: =F10 -> 3389 | G80: 4524 | H80: 5879 | I80: 8318 | J80: 16784 | K80: 25249 | L80: 33715 | M80: 42181 | N80: 50646 | O80: 59112
A81: Energex | B81: 2 | C81: Minor | D81: CONV | F81: =F11 -> 125346 | G81: 115984 | H81: 103136 | I81: 78710 | J81: 65592 | K81: 52473 | L81: 39355 | M81: 26237 | N81: 13118 | O81: 0
A82: Energex | B82: 2A | C82: Minor | D82: LED | F82: =F12 -> 8985 | G82: =G12 -> 19935 | H82: =H12 -> 35097 | I82: =I12 -> 62195 | J82: =J12 -> 75313 | K82: =K12+K66 -> 96599 | L82: =L12+L66 -> 109717 | M82: =M12+M66 -> 122835 | N82: =N12+N66 -> 135954 | O82: =O12+O66 -> 149072
A83: Energex | B83: All | C83: All | D83: CONV | F83: =SUMIF($D$75:$D$82,$D83,F$75:F$82) -> 318707 | G83: 301618 | H83: 280618 | I83: 240504 | J83: 200420 | K83: 160336 | L83: 120253 | M83: 80169 | N83: 40084 | O83: 0
A84: Energex | B84: All | C84: All | D84: LED | F84: 22514 | G84: 42169 | H84: 66229 | I84: 110710 | J84: 151239 | K84: 198631 | L84: 239175 | M84: 279728 | N84: 320290 | O84: 360860
A85: Energex | B85: All | C85: All | D85: All | F85: =SUM(F83:F84) -> 341221 | G85: =G15+G65 -> 343176 | H85: =SUM(H83:H84) -> 346847 | I85: 351214 | J85: 351659 | K85: 358967 | L85: 359428 | M85: 359897 | N85: 360374 | O85: 360860
J86: Check | K86: =IF(K15+K57+K67-K85=0,0,1) -> 0 | L86: =IF(L15+SUM(K57,L57)+L67-L85=0,0,1) -> 0 | M86: =IF(M15+SUM(K57:M57)+M67-M85=0,0,1) -> 0 | N86: =IF(N15+SUM(K57:N57)+N67-N85=0,0,1) -> 0 | O86: =IF(O15+SUM(K57:O57)+O67-O85=0,0,1) -> 0
A87: Rate 1 and 2A proportion | B87: LED | C87: Rate 1 | G87: =((G76-F76)+(G78-F78))/((G76-F76)+(G78-F78)+(G80-F80)+(G82-F82)) -> 0.3851437293 | H87: 0.3135078969 | I87: 0.3359636699 | J87: =((J76-I76)+(J78-I78))/((J76-I76)+(J78-I78)+(J80-I80)+(J82-I82)) -> 0.4674430655 | K87: 0.3722358204 | L87: 0.4676400947 | M87: 0.4677582423 | N87: 0.4678763375 | O87: 0.4679812669
C88: Rate 2A | G88: =1-G87 -> 0.6148562707 | H88: 0.6864921031 | I88: 0.6640363301 | J88: 0.5325569345 | K88: =1-K87 -> 0.6277641796 | L88: 0.5323599053 | M88: 0.5322417577 | N88: 0.5321236625 | O88: 0.5320187331
A89: Note:
A90: No to little growth assumed in Table 4 as the capex is for the conversion to LED of existing light population. Growth of 2.5% is included in Table 5
A91: Customer funded new installations removed from the Rate 2A tariff and included in Table 5 below to be treated separately
K92: 100% LED deployment by 2030
A93: Table 5 - Rate 2 customer contributed assets | E93: Previous period | F93: Current period | K93: Forthcoming period
E94: Actual | F94: Actual | G94: Actual | H94: Actual | I94: Actual | J94: Forecast | K94: Forecast | L94: Forecast | M94: Forecast | N94: Forecast | O94: Forecast
A95: DNSP | B95: Rate | C95: Road type | D95: Light type | E95: 2019-20 | F95: 2020-21 | G95: 2021-22 | H95: 2022-23 | I95: 2023-24 | J95: 2024-25 | K95: 2025-26 | L95: 2026-27 | M95: 2027-28 | N95: 2028-29 | O95: 2029-30
A96: New installations and new subdivisions
A97: Energex | B97: 2 | C97: Major | D97: LED | E97: 909 | F97: 1279 | G97: 1110 | H97: 1139 | I97: =H97*(1+'Ratios & Assumptions'!$D$13) -> 1167.475 | J97: =I97*(1+'Ratios & Assumptions'!$D$13) -> 1196.661875 | K97: =ROUND(J97*(1+'Ratios & Assumptions'!$D$13),0) -> 1227 | L97: =ROUND(K97*(1+'Ratios & Assumptions'!$D$13),0) -> 1258 | M97: =ROUND(L97*(1+'Ratios & Assumptions'!$D$13),0) -> 1289 | N97: =ROUND(M97*(1+'Ratios & Assumptions'!$D$13),0) -> 1321 | O97: =ROUND(N97*(1+'Ratios & Assumptions'!$D$13),0) -> 1354
B98: 2 | C98: Minor | D98: LED | E98: 1363 | F98: 1709 | G98: 2017 | H98: 2771 | I98: =H98*(1+'Ratios & Assumptions'!$D$14) -> 2812.565 | J98: =I98*(1+'Ratios & Assumptions'!$D$14) -> 2854.753475 | K98: =ROUND(J98*(1+'Ratios & Assumptions'!$D$14),0) -> 2898 | L98: =ROUND(K98*(1+'Ratios & Assumptions'!$D$14),0) -> 2941 | M98: =ROUND(L98*(1+'Ratios & Assumptions'!$D$14),0) -> 2985 | N98: =ROUND(M98*(1+'Ratios & Assumptions'!$D$14),0) -> 3030 | O98: =ROUND(N98*(1+'Ratios & Assumptions'!$D$14),0) -> 3075
A99: Rate 4 reassigned to Rate 2 on 1 July 2025
A100: Energex | B100: 2 | C100: Major | D100: LED | F100: 61 | G100: 184 | H100: 245 | I100: 330 | J100: 394 | K100: =ROUND($J$100,0) -> 394 | L100: =ROUND($J$100,0) -> 394 | M100: 394 | N100: 394 | O100: 394
B101: 2 | C101: Minor | D101: LED | F101: 274 | G101: 634 | H101: 1036 | I101: 1187 | J101: 1721 | K101: =ROUND($J$101,0) -> 1721 | L101: =ROUND($J$101,0) -> 1721 | M101: 1721 | N101: 1721 | O101: 1721
A102: Energex | B102: All | C102: Major | D102: LED | E102: =E97 -> 909 | F102: =F97 -> 1279 | G102: 1110 | H102: 1139 | I102: 1167.475 | J102: 1196.661875 | K102: =K97+K100 -> 1621 | L102: =L97+L100 -> 1652 | M102: 1683 | N102: 1715 | O102: 1748
C103: Minor | D103: LED | E103: =E98 -> 1363 | F103: =F98 -> 1709 | G103: 2017 | H103: 2771 | I103: 2812.565 | J103: 2854.753475 | K103: =K98+K101 -> 4619 | L103: =L98+L101 -> 4662 | M103: 4706 | N103: 4751 | O103: 4796
A104: Energex | B104: All | C104: All | D104: LED | E104: =E102+E103 -> 2272 | F104: =F102+F103 -> 2988 | G104: 3127 | H104: 3910 | I104: 3980.04 | J104: 4051.41535 | K104: 6240 | L104: 6314 | M104: 6389 | N104: 6466 | O104: 6544
A106: Notes:
A107: Historical 2019-20 to 2022-23 figures for Other Contributed assets, based on internal reports between 2019-20 to 2020-21, growth is relatively modest
A108: Historical 2019-20 to 2022-23 figures for New Installations based on RIN data
A109: Forecast growth rate of 2.5%

Sheet >>Unit Rates

Sheet EGX Unit Rates
A1: Table 1: Energex Public Light - Unit costs per luminaire
D2: Unit cost
A3: Activity type | B3: Asset type | C3: Cost categories | D3: $2022-23
D4: Actual
A5: Light installation | B5: steel underground decorative minor (typically Rate 2) | C5: Labour | D5: N/A
C6: Material | D6: N/A
C7: Contractor | D7: N/A
B8: Rate 1 Minor LED install | C8: Labour | D8: 506.2196263
C9: Material | D9: 841.1160602
C10: Contractor | D10: 3510.05854
B11: Rate 1 Major LED install | C11: Labour | D11: 856.4887263
C12: Material | D12: 3433.561058
C13: Contractor | D13: 5938.777187
B14: wood pole minor (Rate 1 and 2) | C14: Labour | D14: N/A
C15: Material | D15: N/A
C16: Contractor | D16: N/A
A17: Light replacement | B17: High Pressure Sodium - Major (Rate 1 and 2) | C17: Labour | D17: N/A
C18: Material | D18: N/A
C19: Contractor | D19: N/A
B20: High Pressure Sodium - Minor (Rate 1 and 2) | C20: Labour | D20: N/A
C21: Material | D21: N/A
C22: Contractor | D22: N/A
B23: LED Major | C23: Labour | D23: 0
C24: Material | D24: 584
C25: Contractor | D25: 75
B26: LED Minor | C26: Labour | D26: 0
C27: Material | D27: 197
C28: Contractor | D28: 75
B29: Nostalgia LED | C29: Labour | D29: 0
C30: Material | D30: 650
C31: Contractor | D31: 245

Sheet >>Forecast capex

Sheet EGX - Forecast capex scenarios
A2: Table 1 - EGX Light Replacement Capex - CONV to LED
A3: Real $2022-23 | F3: 100% LED deployment by 2030
F4: Forecast | G4: Forecast | H4: Forecast | I4: Forecast | J4: Forecast
A5: DNSP | B5: Rate | C5: Road type | D5: Light type | E5: Cost category | F5: 2025-26 | G5: 2026-27 | H5: 2027-28 | I5: 2028-29 | J5: 2029-30
A6: Energex | B6: 1 | C6: Major | D6: LED | E6: Labour | F6: ='EGX Unit Rates'!$D23*'EGX - Yearly volume scenarios'!K$42 -> 0 | G6: ='EGX Unit Rates'!$D23*'EGX - Yearly volume scenarios'!L$42 -> 0 | H6: ='EGX Unit Rates'!$D23*'EGX - Yearly volume scenarios'!M$42 -> 0 | I6: ='EGX Unit Rates'!$D23*'EGX - Yearly volume scenarios'!N$42 -> 0 | J6: ='EGX Unit Rates'!$D23*'EGX - Yearly volume scenarios'!O$42 -> 0
B7: 1 | C7: Major | D7: LED | E7: Material | F7: ='EGX Unit Rates'!$D24*'EGX - Yearly volume scenarios'!K$42 -> 3542544 | G7: ='EGX Unit Rates'!$D24*'EGX - Yearly volume scenarios'!L$42 -> 3542544 | H7: ='EGX Unit Rates'!$D24*'EGX - Yearly volume scenarios'!M$42 -> 3542544 | I7: ='EGX Unit Rates'!$D24*'EGX - Yearly volume scenarios'!N$42 -> 3542544 | J7: ='EGX Unit Rates'!$D24*'EGX - Yearly volume scenarios'!O$42 -> 3542544
B8: 1 | C8: Major | D8: LED | E8: Contractor | F8: ='EGX Unit Rates'!$D25*'EGX - Yearly volume scenarios'!K$42 -> 454950 | G8: ='EGX Unit Rates'!$D25*'EGX - Yearly volume scenarios'!L$42 -> 454950 | H8: ='EGX Unit Rates'!$D25*'EGX - Yearly volume scenarios'!M$42 -> 454950 | I8: ='EGX Unit Rates'!$D25*'EGX - Yearly volume scenarios'!N$42 -> 454950 | J8: ='EGX Unit Rates'!$D25*'EGX - Yearly volume scenarios'!O$42 -> 454950
A9: Energex | B9: 1 | C9: Minor | D9: LED | E9: Labour | F9: ='EGX Unit Rates'!$D26*'EGX - Yearly volume scenarios'!K$43 -> 0 | G9: ='EGX Unit Rates'!$D26*'EGX - Yearly volume scenarios'!L$43 -> 0 | H9: ='EGX Unit Rates'!$D26*'EGX - Yearly volume scenarios'!M$43 -> 0 | I9: ='EGX Unit Rates'!$D26*'EGX - Yearly volume scenarios'!N$43 -> 0 | J9: ='EGX Unit Rates'!$D26*'EGX - Yearly volume scenarios'!O$43 -> 0
B10: 1 | C10: Minor | D10: LED | E10: Material | F10: ='EGX Unit Rates'!$D27*'EGX - Yearly volume scenarios'!K$43 -> 2449498 | G10: ='EGX Unit Rates'!$D27*'EGX - Yearly volume scenarios'!L$43 -> 2449498 | H10: ='EGX Unit Rates'!$D27*'EGX - Yearly volume scenarios'!M$43 -> 2449498 | I10: ='EGX Unit Rates'!$D27*'EGX - Yearly volume scenarios'!N$43 -> 2449498 | J10: ='EGX Unit Rates'!$D27*'EGX - Yearly volume scenarios'!O$43 -> 2449498
B11: 1 | C11: Minor | D11: LED | E11: Contractor | F11: ='EGX Unit Rates'!$D28*'EGX - Yearly volume scenarios'!K$43 -> 932550 | G11: ='EGX Unit Rates'!$D28*'EGX - Yearly volume scenarios'!L$43 -> 932550 | H11: ='EGX Unit Rates'!$D28*'EGX - Yearly volume scenarios'!M$43 -> 932550 | I11: ='EGX Unit Rates'!$D28*'EGX - Yearly volume scenarios'!N$43 -> 932550 | J11: ='EGX Unit Rates'!$D28*'EGX - Yearly volume scenarios'!O$43 -> 932550
A12: Energex | B12: 2A | C12: Major | D12: LED | E12: Labour | F12: ='EGX Unit Rates'!$D23*'EGX - Yearly volume scenarios'!K$44 -> 0 | G12: ='EGX Unit Rates'!$D23*'EGX - Yearly volume scenarios'!L$44 -> 0 | H12: ='EGX Unit Rates'!$D23*'EGX - Yearly volume scenarios'!M$44 -> 0 | I12: ='EGX Unit Rates'!$D23*'EGX - Yearly volume scenarios'!N$44 -> 0 | J12: ='EGX Unit Rates'!$D23*'EGX - Yearly volume scenarios'!O$44 -> 0
B13: 2A | C13: Major | D13: LED | E13: Material | F13: ='EGX Unit Rates'!$D24*'EGX - Yearly volume scenarios'!K$44 -> 4944144 | G13: ='EGX Unit Rates'!$D24*'EGX - Yearly volume scenarios'!L$44 -> 4944144 | H13: ='EGX Unit Rates'!$D24*'EGX - Yearly volume scenarios'!M$44 -> 4944144 | I13: ='EGX Unit Rates'!$D24*'EGX - Yearly volume scenarios'!N$44 -> 4944144 | J13: ='EGX Unit Rates'!$D24*'EGX - Yearly volume scenarios'!O$44 -> 4944144
B14: 2A | C14: Major | D14: LED | E14: Contractor | F14: ='EGX Unit Rates'!$D25*'EGX - Yearly volume scenarios'!K$44 -> 634950 | G14: ='EGX Unit Rates'!$D25*'EGX - Yearly volume scenarios'!L$44 -> 634950 | H14: ='EGX Unit Rates'!$D25*'EGX - Yearly volume scenarios'!M$44 -> 634950 | I14: ='EGX Unit Rates'!$D25*'EGX - Yearly volume scenarios'!N$44 -> 634950 | J14: ='EGX Unit Rates'!$D25*'EGX - Yearly volume scenarios'!O$44 -> 634950
A15: Energex | B15: 2A | C15: Minor | D15: LED | E15: Labour | F15: ='EGX Unit Rates'!$D26*'EGX - Yearly volume scenarios'!K$45 -> 0 | G15: ='EGX Unit Rates'!$D26*'EGX - Yearly volume scenarios'!L$45 -> 0 | H15: ='EGX Unit Rates'!$D26*'EGX - Yearly volume scenarios'!M$45 -> 0 | I15: ='EGX Unit Rates'!$D26*'EGX - Yearly volume scenarios'!N$45 -> 0 | J15: ='EGX Unit Rates'!$D26*'EGX - Yearly volume scenarios'!O$45 -> 0
B16: 2A | C16: Minor | D16: LED | E16: Material | F16: ='EGX Unit Rates'!$D27*'EGX - Yearly volume scenarios'!K$45 -> 2584246 | G16: ='EGX Unit Rates'!$D27*'EGX - Yearly volume scenarios'!L$45 -> 2584246 | H16: ='EGX Unit Rates'!$D27*'EGX - Yearly volume scenarios'!M$45 -> 2584246 | I16: ='EGX Unit Rates'!$D27*'EGX - Yearly volume scenarios'!N$45 -> 2584246 | J16: ='EGX Unit Rates'!$D27*'EGX - Yearly volume scenarios'!O$45 -> 2584246
B17: 2A | C17: Minor | D17: LED | E17: Contractor | F17: ='EGX Unit Rates'!$D28*'EGX - Yearly volume scenarios'!K$45 -> 983850 | G17: ='EGX Unit Rates'!$D28*'EGX - Yearly volume scenarios'!L$45 -> 983850 | H17: ='EGX Unit Rates'!$D28*'EGX - Yearly volume scenarios'!M$45 -> 983850 | I17: ='EGX Unit Rates'!$D28*'EGX - Yearly volume scenarios'!N$45 -> 983850 | J17: ='EGX Unit Rates'!$D28*'EGX - Yearly volume scenarios'!O$45 -> 983850
A18: Energex | B18: 1 | C18: All | D18: LED | E18: Labour | F18: =F6+F9 -> 0 | G18: 0 | H18: 0 | I18: 0 | J18: 0
B19: 1 | C19: All | D19: LED | E19: Material | F19: =SUMIFS(F$6:F$17,$B$6:$B$17,$B19,$E$6:$E$17,$E19) -> 5992042 | G19: 5992042 | H19: 5992042 | I19: 5992042 | J19: 5992042
B20: 1 | C20: All | D20: LED | E20: Contractor | F20: 1387500 | G20: 1387500 | H20: 1387500 | I20: 1387500 | J20: 1387500
A21: Energex | B21: 2A | C21: All | D21: LED | E21: Labour | F21: 0 | G21: 0 | H21: 0 | I21: 0 | J21: 0
B22: 2A | C22: All | D22: LED | E22: Material | F22: 7528390 | G22: 7528390 | H22: 7528390 | I22: 7528390 | J22: 7528390
B23: 2A | C23: All | D23: LED | E23: Contractor | F23: 1618800 | G23: 1618800 | H23: 1618800 | I23: 1618800 | J23: 1618800
A24: Energex | B24: All | C24: All | D24: LED | E24: Labour | F24: =F18+F21 -> 0 | G24: 0 | H24: 0 | I24: 0 | J24: 0
B25: All | C25: All | D25: LED | E25: Material | F25: =F19+F22 -> 13520432 | G25: 13520432 | H25: 13520432 | I25: 13520432 | J25: 13520432
B26: All | C26: All | D26: LED | E26: Contractor | F26: 3006300 | G26: 3006300 | H26: 3006300 | I26: 3006300 | J26: 3006300
A27: Energex | B27: All | C27: All | D27: LED | E27: All | F27: =SUM(F24:F26) -> 16526732 | G27: 16526732 | H27: 16526732 | I27: 16526732 | J27: 16526732
A29: Table 2 - EGX Light Replacement Capex - CONV to CONV
A30: Real $2022-23 (direct costs) | F30: 100% LED deployment by 2030
F31: Forecast | G31: Forecast | H31: Forecast | I31: Forecast | J31: Forecast
A32: DNSP | B32: Rate | C32: Road Type | D32: Light type | E32: Cost category | F32: 2025-26 | G32: 2026-27 | H32: 2027-28 | I32: 2028-29 | J32: 2029-30
A33: Energex | B33: 1 | C33: Major | D33: CONV | E33: Labour | F33: 0 | G33: 0 | H33: 0 | I33: 0 | J33: 0 | K33: No like for like replacements for conventional assets for 2025-30
B34: 1 | C34: Major | D34: CONV | E34: Material | F34: 0 | G34: 0 | H34: 0 | I34: 0 | J34: 0 | K34: No like for like replacements for conventional assets for 2025-30
B35: 1 | C35: Major | D35: CONV | E35: Contractor | F35: 0 | G35: 0 | H35: 0 | I35: 0 | J35: 0 | K35: No like for like replacements for conventional assets for 2025-30
A36: Energex | B36: 1 | C36: Minor | D36: CONV | E36: Labour | F36: 0 | G36: 0 | H36: 0 | I36: 0 | J36: 0 | K36: No like for like replacements for conventional assets for 2025-30
B37: 1 | C37: Minor | D37: CONV | E37: Material | F37: 0 | G37: 0 | H37: 0 | I37: 0 | J37: 0 | K37: No like for like replacements for conventional assets for 2025-30
B38: 1 | C38: Minor | D38: CONV | E38: Contractor | F38: 0 | G38: 0 | H38: 0 | I38: 0 | J38: 0 | K38: No like for like replacements for conventional assets for 2025-30
A39: Energex | B39: 2 | C39: Major | D39: CONV | E39: Labour | F39: 0 | G39: 0 | H39: 0 | I39: 0 | J39: 0 | K39: No like for like replacements for conventional assets for 2025-30
B40: 2 | C40: Major | D40: CONV | E40: Material | F40: 0 | G40: 0 | H40: 0 | I40: 0 | J40: 0 | K40: No like for like replacements for conventional assets for 2025-30
B41: 2 | C41: Major | D41: CONV | E41: Contractor | F41: 0 | G41: 0 | H41: 0 | I41: 0 | J41: 0 | K41: No like for like replacements for conventional assets for 2025-30
A42: Energex | B42: 2 | C42: Minor | D42: CONV | E42: Labour | F42: 0 | G42: 0 | H42: 0 | I42: 0 | J42: 0 | K42: No like for like replacements for conventional assets for 2025-30
B43: 2 | C43: Minor | D43: CONV | E43: Material | F43: 0 | G43: 0 | H43: 0 | I43: 0 | J43: 0 | K43: No like for like replacements for conventional assets for 2025-30
B44: 2 | C44: Minor | D44: CONV | E44: Contractor | F44: 0 | G44: 0 | H44: 0 | I44: 0 | J44: 0 | K44: No like for like replacements for conventional assets for 2025-30
A45: Energex | B45: 1 | C45: All | D45: CONV | E45: Labour | F45: =SUMIFS(F$33:F$44,$B$33:$B$44,$B45,$E$33:$E$44,$E45) -> 0 | G45: 0 | H45: 0 | I45: 0 | J45: 0
B46: 1 | C46: All | D46: CONV | E46: Material | F46: =SUMIFS(F$33:F$44,$B$33:$B$44,$B46,$E$33:$E$44,$E46) -> 0 | G46: 0 | H46: 0 | I46: 0 | J46: 0
B47: 1 | C47: All | D47: CONV | E47: Contractor | F47: 0 | G47: 0 | H47: 0 | I47: 0 | J47: 0
A48: Energex | B48: 2 | C48: All | D48: CONV | E48: Labour | F48: 0 | G48: 0 | H48: 0 | I48: 0 | J48: 0
B49: 2 | C49: All | D49: CONV | E49: Material | F49: 0 | G49: 0 | H49: 0 | I49: 0 | J49: 0
B50: 2 | C50: All | D50: CONV | E50: Contractor | F50: 0 | G50: 0 | H50: 0 | I50: 0 | J50: 0
A51: Energex | B51: All | C51: All | D51: CONV | E51: Labour | F51: =SUMIF($E$33:$E$44,$E51,F$33:F$44) -> 0 | G51: 0 | H51: 0 | I51: 0 | J51: 0
B52: All | C52: All | D52: CONV | E52: Material | F52: =SUMIF($E$33:$E$44,$E52,F$33:F$44) -> 0 | G52: 0 | H52: 0 | I52: 0 | J52: 0
B53: All | C53: All | D53: CONV | E53: Contractor | F53: 0 | G53: 0 | H53: 0 | I53: 0 | J53: 0
A54: Energex | B54: All | C54: All | D54: CONV | E54: All | F54: =SUM(F51:F53) -> 0 | G54: 0 | H54: 0 | I54: 0 | J54: 0
A55: Note:
A56: Assumed $0 given that Energy Qld does not have any stocks of conventional lights
A58: Table 3 - EGX Light Installation Capex
A59: Real $2022-23 (direct costs) | F59: 100% LED deployment by 2030
F60: Forecast | G60: Forecast | H60: Forecast | I60: Forecast | J60: Forecast
A61: DNSP | B61: Rate | C61: Road type | D61: Light type | E61: Cost category | F61: 2025-26 | G61: 2026-27 | H61: 2027-28 | I61: 2028-29 | J61: 2029-30
A62: Energex | B62: 1 | C62: Major | D62: LED | E62: Labour | F62: ='EGX - Yearly volume scenarios'!K$55*'EGX Unit Rates'!$D11 -> 113913.0006 | G62: ='EGX - Yearly volume scenarios'!L$55*'EGX Unit Rates'!$D11 -> 116482.4668 | H62: ='EGX - Yearly volume scenarios'!M$55*'EGX Unit Rates'!$D11 -> 119051.933 | I62: ='EGX - Yearly volume scenarios'!N$55*'EGX Unit Rates'!$D11 -> 121621.3991 | J62: ='EGX - Yearly volume scenarios'!O$55*'EGX Unit Rates'!$D11 -> 125047.354
B63: 1 | C63: Major | D63: LED | E63: Material | F63: ='EGX - Yearly volume scenarios'!K$55*'EGX Unit Rates'!$D12 -> 456663.6207 | G63: ='EGX - Yearly volume scenarios'!L$55*'EGX Unit Rates'!$D12 -> 466964.3039 | H63: ='EGX - Yearly volume scenarios'!M$55*'EGX Unit Rates'!$D12 -> 477264.9871 | I63: ='EGX - Yearly volume scenarios'!N$55*'EGX Unit Rates'!$D12 -> 487565.6703 | J63: ='EGX - Yearly volume scenarios'!O$55*'EGX Unit Rates'!$D12 -> 501299.9145
B64: 1 | C64: Major | D64: LED | E64: Contractor | F64: ='EGX - Yearly volume scenarios'!K$55*'EGX Unit Rates'!$D13 -> 789857.3658 | G64: ='EGX - Yearly volume scenarios'!L$55*'EGX Unit Rates'!$D13 -> 807673.6974 | H64: ='EGX - Yearly volume scenarios'!M$55*'EGX Unit Rates'!$D13 -> 825490.0289 | I64: ='EGX - Yearly volume scenarios'!N$55*'EGX Unit Rates'!$D13 -> 843306.3605 | J64: ='EGX - Yearly volume scenarios'!O$55*'EGX Unit Rates'!$D13 -> 867061.4692
A65: Energex | B65: 1 | C65: Minor | D65: LED | E65: Labour | F65: ='EGX - Yearly volume scenarios'!K$56*'EGX Unit Rates'!$D8 -> 161990.2804 | G65: ='EGX - Yearly volume scenarios'!L$56*'EGX Unit Rates'!$D8 -> 164521.3786 | H65: ='EGX - Yearly volume scenarios'!M$56*'EGX Unit Rates'!$D8 -> 167052.4767 | I65: ='EGX - Yearly volume scenarios'!N$56*'EGX Unit Rates'!$D8 -> 169583.5748 | J65: ='EGX - Yearly volume scenarios'!O$56*'EGX Unit Rates'!$D8 -> 172114.6729
B66: 1 | C66: Minor | D66: LED | E66: Material | F66: ='EGX - Yearly volume scenarios'!K$56*'EGX Unit Rates'!$D9 -> 269157.1393 | G66: ='EGX - Yearly volume scenarios'!L$56*'EGX Unit Rates'!$D9 -> 273362.7196 | H66: ='EGX - Yearly volume scenarios'!M$56*'EGX Unit Rates'!$D9 -> 277568.2999 | I66: ='EGX - Yearly volume scenarios'!N$56*'EGX Unit Rates'!$D9 -> 281773.8802 | J66: ='EGX - Yearly volume scenarios'!O$56*'EGX Unit Rates'!$D9 -> 285979.4605
B67: 1 | C67: Minor | D67: LED | E67: Contractor | F67: ='EGX - Yearly volume scenarios'!K$56*'EGX Unit Rates'!$D10 -> 1123218.733 | G67: ='EGX - Yearly volume scenarios'!L$56*'EGX Unit Rates'!$D10 -> 1140769.026 | H67: ='EGX - Yearly volume scenarios'!M$56*'EGX Unit Rates'!$D10 -> 1158319.318 | I67: ='EGX - Yearly volume scenarios'!N$56*'EGX Unit Rates'!$D10 -> 1175869.611 | J67: ='EGX - Yearly volume scenarios'!O$56*'EGX Unit Rates'!$D10 -> 1193419.904
A68: Energex | B68: 2A | C68: Major | D68: LED | E68: Labour | F68: 0 | G68: 0 | H68: 0 | I68: 0 | J68: 0 | K68: Assumes customers or real estate developers are funding the upfront capex to install new lights
B69: 2A | C69: Major | D69: LED | E69: Material | F69: 0 | G69: 0 | H69: 0 | I69: 0 | J69: 0 | K69: Assumes customers or real estate developers are funding the upfront capex to install new lights
B70: 2A | C70: Major | D70: LED | E70: Contractor | F70: 0 | G70: 0 | H70: 0 | I70: 0 | J70: 0 | K70: Assumes customers or real estate developers are funding the upfront capex to install new lights
A71: Energex | B71: 2A | C71: Minor | D71: LED | E71: Labour | F71: 0 | G71: 0 | H71: 0 | I71: 0 | J71: 0 | K71: Assumes customers or real estate developers are funding the upfront capex to install new lights
B72: 2A | C72: Minor | D72: LED | E72: Material | F72: 0 | G72: 0 | H72: 0 | I72: 0 | J72: 0 | K72: Assumes customers or real estate developers are funding the upfront capex to install new lights
B73: 2A | C73: Minor | D73: LED | E73: Contractor | F73: 0 | G73: 0 | H73: 0 | I73: 0 | J73: 0 | K73: Assumes customers or real estate developers are funding the upfront capex to install new lights
A74: Energex | B74: 1 | C74: All | D74: LED | E74: Labour | F74: =SUMIFS(F$62:F$73,$B$62:$B$73,$B74,$E$62:$E$73,$E74) -> 275903.281 | G74: 281003.8453 | H74: 286104.4096 | I74: 291204.974 | J74: 297162.027
B75: 1 | C75: All | D75: LED | E75: Material | F75: =SUMIFS(F$62:F$73,$B$62:$B$73,$B75,$E$62:$E$73,$E75) -> 725820.76 | G75: 740327.0235 | H75: 754833.287 | I75: 769339.5504 | J75: 787279.375
B76: 1 | C76: All | D76: LED | E76: Contractor | F76: 1913076.099 | G76: 1948442.723 | H76: 1983809.347 | I76: 2019175.971 | J76: 2060481.373
A77: Energex | B77: 2A | C77: All | D77: LED | E77: Labour | F77: 0 | G77: 0 | H77: 0 | I77: 0 | J77: 0
B78: 2A | C78: All | D78: LED | E78: Material | F78: 0 | G78: 0 | H78: 0 | I78: 0 | J78: 0
B79: 2A | C79: All | D79: LED | E79: Contractor | F79: 0 | G79: 0 | H79: 0 | I79: 0 | J79: 0
A80: Energex | B80: All | C80: All | D80: LED | E80: Labour | F80: =SUMIF($E$62:$E$73,$E80,F$62:F$73) -> 275903.281 | G80: 281003.8453 | H80: 286104.4096 | I80: 291204.974 | J80: 297162.027
B81: All | C81: All | D81: LED | E81: Material | F81: =SUMIF($E$62:$E$73,$E81,F$62:F$73) -> 725820.76 | G81: 740327.0235 | H81: 754833.287 | I81: 769339.5504 | J81: 787279.375
B82: All | C82: All | D82: LED | E82: Contractor | F82: 1913076.099 | G82: 1948442.723 | H82: 1983809.347 | I82: 2019175.971 | J82: 2060481.373
A83: Energex | B83: All | C83: All | D83: LED | E83: All | F83: =SUM(F80:F82) -> 2914800.14 | G83: =SUM(G80:G82) -> 2969773.592 | H83: 3024747.044 | I83: 3079720.496 | J83: 3144922.775
A86: Table 4 - EGX Nostalgia Replacement Capex
A87: Real $2022-23 (direct costs) | F87: 100% LED deployment by 2030
F88: Forecast | G88: Forecast | H88: Forecast | I88: Forecast | J88: Forecast
A89: DNSP | B89: Rate | C89: Road type | D89: Light type | E89: Cost category | F89: 2025-26 | G89: 2026-27 | H89: 2027-28 | I89: 2028-29 | J89: 2029-30
A90: Energex | B90: 1 | C90: Minor | D90: LED | E90: Labour | F90: ='EGX - Yearly volume scenarios'!K$65*'EGX Unit Rates'!$D29 -> 0 | G90: ='EGX - Yearly volume scenarios'!L$65*'EGX Unit Rates'!$D29 -> 0 | H90: ='EGX - Yearly volume scenarios'!M$65*'EGX Unit Rates'!$D29 -> 0 | I90: ='EGX - Yearly volume scenarios'!N$65*'EGX Unit Rates'!$D29 -> 0 | J90: ='EGX - Yearly volume scenarios'!O$65*'EGX Unit Rates'!$D29 -> 0
B91: 1 | C91: Minor | D91: LED | E91: Material | F91: ='EGX - Yearly volume scenarios'!K$65*'EGX Unit Rates'!$D30 -> 70200 | G91: ='EGX - Yearly volume scenarios'!L$65*'EGX Unit Rates'!$D30 -> 70200 | H91: ='EGX - Yearly volume scenarios'!M$65*'EGX Unit Rates'!$D30 -> 70200 | I91: ='EGX - Yearly volume scenarios'!N$65*'EGX Unit Rates'!$D30 -> 70200 | J91: ='EGX - Yearly volume scenarios'!O$65*'EGX Unit Rates'!$D30 -> 70200
B92: 1 | C92: Minor | D92: LED | E92: Contractor | F92: ='EGX - Yearly volume scenarios'!K$65*'EGX Unit Rates'!$D31 -> 26460 | G92: ='EGX - Yearly volume scenarios'!L$65*'EGX Unit Rates'!$D31 -> 26460 | H92: ='EGX - Yearly volume scenarios'!M$65*'EGX Unit Rates'!$D31 -> 26460 | I92: ='EGX - Yearly volume scenarios'!N$65*'EGX Unit Rates'!$D31 -> 26460 | J92: ='EGX - Yearly volume scenarios'!O$65*'EGX Unit Rates'!$D31 -> 26460
A93: Energex | B93: 2A | C93: Minor | D93: LED | E93: Labour | F93: ='EGX - Yearly volume scenarios'!K$66*'EGX Unit Rates'!$D29 -> 0 | G93: ='EGX - Yearly volume scenarios'!L$66*'EGX Unit Rates'!$D29 -> 0 | H93: ='EGX - Yearly volume scenarios'!M$66*'EGX Unit Rates'!$D29 -> 0 | I93: ='EGX - Yearly volume scenarios'!N$66*'EGX Unit Rates'!$D29 -> 0 | J93: ='EGX - Yearly volume scenarios'!O$66*'EGX Unit Rates'!$D29 -> 0
B94: 2A | C94: Minor | D94: LED | E94: Material | F94: ='EGX - Yearly volume scenarios'!K$66*'EGX Unit Rates'!$D30 -> 5308550 | G94: ='EGX - Yearly volume scenarios'!L$66*'EGX Unit Rates'!$D30 -> 5308550 | H94: ='EGX - Yearly volume scenarios'!M$66*'EGX Unit Rates'!$D30 -> 5308550 | I94: ='EGX - Yearly volume scenarios'!N$66*'EGX Unit Rates'!$D30 -> 5308550 | J94: ='EGX - Yearly volume scenarios'!O$66*'EGX Unit Rates'!$D30 -> 5308550
B95: 2A | C95: Minor | D95: LED | E95: Contractor | F95: ='EGX - Yearly volume scenarios'!K$66*'EGX Unit Rates'!$D31 -> 2000915 | G95: ='EGX - Yearly volume scenarios'!L$66*'EGX Unit Rates'!$D31 -> 2000915 | H95: ='EGX - Yearly volume scenarios'!M$66*'EGX Unit Rates'!$D31 -> 2000915 | I95: ='EGX - Yearly volume scenarios'!N$66*'EGX Unit Rates'!$D31 -> 2000915 | J95: ='EGX - Yearly volume scenarios'!O$66*'EGX Unit Rates'!$D31 -> 2000915
A96: Energex | B96: All | C96: All | D96: All | E96: Labour | F96: =F90+F93 -> 0 | G96: 0 | H96: 0 | I96: 0 | J96: 0
B97: All | C97: All | D97: All | E97: Material | F97: =F91+F94 -> 5378750 | G97: 5378750 | H97: 5378750 | I97: 5378750 | J97: 5378750
B98: All | C98: All | D98: All | E98: Contractor | F98: =F92+F95 -> 2027375 | G98: 2027375 | H98: 2027375 | I98: 2027375 | J98: 2027375
A99: Energex | B99: All | C99: All | D99: All | E99: All | F99: =SUM(F96:F98) -> 7406125 | G99: 7406125 | H99: 7406125 | I99: 7406125 | J99: 7406125
A101: Table 5 - EGX Pole replacements
A102: Real $2022-23 (direct costs) | F102: 100% LED deployment by 2030
F103: Forecast | G103: Forecast | H103: Forecast | I103: Forecast | J103: Forecast
A104: DNSP | B104: Rate | C104: Road type | D104: Light type | E104: Cost category | F104: 2025-26 | G104: 2026-27 | H104: 2027-28 | I104: 2028-29 | J104: 2029-30
A105: Energex | B105: 1 | C105: Major | D105: All | E105: Labour | F105: 0 | G105: 0 | H105: 0 | I105: 0 | J105: 0
B106: 1 | C106: Major | D106: All | E106: Material | F106: 0 | G106: 0 | H106: 0 | I106: 0 | J106: 0
B107: 1 | C107: Major | D107: All | E107: Contractor | F107: 0 | G107: 0 | H107: 0 | I107: 0 | J107: 0
B108: 1 | C108: Minor | D108: All | E108: Labour | F108: 0 | G108: 0 | H108: 0 | I108: 0 | J108: 0
B109: 1 | C109: Minor | D109: All | E109: Material | F109: 0 | G109: 0 | H109: 0 | I109: 0 | J109: 0
B110: 1 | C110: Minor | D110: All | E110: Contractor | F110: 0 | G110: 0 | H110: 0 | I110: 0 | J110: 0
A111: Energex | B111: 2 | C111: Major | D111: All | E111: Labour | F111: 0 | G111: 0 | H111: 0 | I111: 0 | J111: 0
B112: 2 | C112: Major | D112: All | E112: Material | F112: 0 | G112: 0 | H112: 0 | I112: 0 | J112: 0
B113: 2 | C113: Major | D113: All | E113: Contractor | F113: 0 | G113: 0 | H113: 0 | I113: 0 | J113: 0
B114: 2 | C114: Minor | D114: All | E114: Labour | F114: 0 | G114: 0 | H114: 0 | I114: 0 | J114: 0
B115: 2 | C115: Minor | D115: All | E115: Material | F115: 0 | G115: 0 | H115: 0 | I115: 0 | J115: 0
B116: 2 | C116: Minor | D116: All | E116: Contractor | F116: 0 | G116: 0 | H116: 0 | I116: 0 | J116: 0
A117: Energex | B117: All | C117: All | D117: All | E117: Labour | F117: =F105+F108+F111+F114 -> 0 | G117: 0 | H117: 0 | I117: 0 | J117: 0
B118: All | C118: All | D118: All | E118: Material | F118: =F106+F109+F112+F115 -> 0 | G118: 0 | H118: 0 | I118: 0 | J118: 0
B119: All | C119: All | D119: All | E119: Contractor | F119: 0 | G119: 0 | H119: 0 | I119: 0 | J119: 0
A120: Energex | B120: All | C120: All | D120: All | E120: All | F120: =SUM(F117:F119) -> 0 | G120: 0 | H120: 0 | I120: 0 | J120: 0
A122: Table 6 - EGX Public Lighting Capex (Direct costs)
A123: Real $2022-23 (direct costs) | F123: 100% LED deployment by 2030
F124: Forecast | G124: Forecast | H124: Forecast | I124: Forecast | J124: Forecast
A125: DNSP | B125: Rate | C125: Road | D125: Light type | E125: Cost category | F125: 2025-26 | G125: 2026-27 | H125: 2027-28 | I125: 2028-29 | J125: 2029-30
A126: Energex | B126: 1 | C126: Major | D126: All | E126: Labour | F126: =SUMIFS(F$6:F$120,$B$6:$B$120,$B126,$C$6:$C$120,$C126,$E$6:$E$120,$E126) -> 113913.0006 | G126: 116482.4668 | H126: 119051.933 | I126: 121621.3991 | J126: 125047.354
B127: 1 | C127: Major | D127: All | E127: Material | F127: 3999207.621 | G127: 4009508.304 | H127: 4019808.987 | I127: 4030109.67 | J127: 4043843.915
B128: 1 | C128: Major | D128: All | E128: Contractor | F128: 1244807.366 | G128: 1262623.697 | H128: 1280440.029 | I128: 1298256.36 | J128: 1322011.469
A129: Energex | B129: 2A | C129: Major | D129: All | E129: Labour | F129: 0 | G129: 0 | H129: 0 | I129: 0 | J129: 0
B130: 2A | C130: Major | D130: All | E130: Material | F130: 4944144 | G130: 4944144 | H130: 4944144 | I130: 4944144 | J130: 4944144
B131: 2A | C131: Major | D131: All | E131: Contractor | F131: 634950 | G131: 634950 | H131: 634950 | I131: 634950 | J131: 634950
A132: Energex | B132: 1 | C132: Minor | D132: All | E132: Labour | F132: 161990.2804 | G132: 164521.3786 | H132: 167052.4767 | I132: 169583.5748 | J132: 172114.6729
B133: 1 | C133: Minor | D133: All | E133: Material | F133: 2788855.139 | G133: 2793060.72 | H133: 2797266.3 | I133: 2801471.88 | J133: 2805677.46
B134: 1 | C134: Minor | D134: All | E134: Contractor | F134: 2082228.733 | G134: 2099779.026 | H134: 2117329.318 | I134: 2134879.611 | J134: 2152429.904
A135: Energex | B135: 2A | C135: Minor | D135: All | E135: Labour | F135: 0 | G135: 0 | H135: 0 | I135: 0 | J135: 0
B136: 2A | C136: Minor | D136: All | E136: Material | F136: 7892796 | G136: 7892796 | H136: 7892796 | I136: 7892796 | J136: 7892796
B137: 2A | C137: Minor | D137: All | E137: Contractor | F137: 2984765 | G137: 2984765 | H137: 2984765 | I137: 2984765 | J137: 2984765
A138: Energex | B138: 1 | C138: All | D138: All | E138: Labour | F138: =SUMIFS(F$126:F$137,$B$126:$B$137,$B138,$E$126:$E$137,$E138) -> 275903.281 | G138: 281003.8453 | H138: 286104.4096 | I138: 291204.974 | J138: 297162.027
B139: 1 | C139: All | D139: All | E139: Material | F139: =SUMIFS(F$126:F$137,$B$126:$B$137,$B139,$E$126:$E$137,$E139) -> 6788062.76 | G139: 6802569.023 | H139: 6817075.287 | I139: 6831581.55 | J139: 6849521.375
B140: 1 | C140: All | D140: All | E140: Contractor | F140: 3327036.099 | G140: 3362402.723 | H140: 3397769.347 | I140: 3433135.971 | J140: 3474441.373
A141: Energex | B141: 2A | C141: All | D141: All | E141: Labour | F141: 0 | G141: 0 | H141: 0 | I141: 0 | J141: 0
B142: 2A | C142: All | D142: All | E142: Material | F142: 12836940 | G142: 12836940 | H142: 12836940 | I142: 12836940 | J142: 12836940
B143: 2A | C143: All | D143: All | E143: Contractor | F143: 3619715 | G143: 3619715 | H143: 3619715 | I143: 3619715 | J143: 3619715
A144: Energex | B144: All | C144: All | D144: All | E144: Labour | F144: =SUMIFS(F$6:F$120,$B$6:$B$120,$B144,$C$6:$C$120,$C144,$E$6:$E$120,$E144) -> 275903.281 | G144: 281003.8453 | H144: 286104.4096 | I144: 291204.974 | J144: 297162.027
B145: All | C145: All | D145: All | E145: Material | F145: 19625002.76 | G145: 19639509.02 | H145: 19654015.29 | I145: 19668521.55 | J145: 19686461.37
B146: All | C146: All | D146: All | E146: Contractor | F146: 6946751.099 | G146: 6982117.723 | H146: 7017484.347 | I146: 7052850.971 | J146: 7094156.373
A147: Energex | B147: All | C147: All | D147: All | E147: All | F147: =SUM(F144:F146) -> 26847657.14 | G147: 26902630.59 | H147: 26957604.04 | I147: 27012577.5 | J147: 27077779.77

Sheet EGX - Gross Capex
A1: 1 - This tables applies the oncosts and overheads to the capex (direct cost) for both RATE 1 and RATE 2A LED conversions funded by Energex
B2: 100% LED deployment by 2030
B3: 2025-26 | C3: 2026-27 | D3: 2027-28 | E3: 2028-29 | F3: 2029-30
A4: Direct Costs ($Real 2024-25)
A5: Labour | B5: ='EGX - Forecast capex scenarios'!F144*'Cost Escalations'!$E$21*(1+'Cost Escalations'!B30) -> 305277.6138 | C5: ='EGX - Forecast capex scenarios'!G144*'Cost Escalations'!$E$21*(1+'Cost Escalations'!C30) -> 314300.9569 | D5: ='EGX - Forecast capex scenarios'!H144*'Cost Escalations'!$E$21*(1+'Cost Escalations'!D30) -> 322804.8772 | E5: ='EGX - Forecast capex scenarios'!I144*'Cost Escalations'!$E$21*(1+'Cost Escalations'!E30) -> 331691.4151 | F5: ='EGX - Forecast capex scenarios'!J144*'Cost Escalations'!$E$21*(1+'Cost Escalations'!F30) -> 342374.5538
A6: Contractors | B6: ='EGX - Forecast capex scenarios'!F146*'Cost Escalations'!$E$21*(1+'Cost Escalations'!B26) -> 7681893.803 | C6: ='EGX - Forecast capex scenarios'!G146*'Cost Escalations'!$E$21*(1+'Cost Escalations'!C26) -> 7775822.237 | D6: ='EGX - Forecast capex scenarios'!H146*'Cost Escalations'!$E$21*(1+'Cost Escalations'!D26) -> 7862882.001 | E6: ='EGX - Forecast capex scenarios'!I146*'Cost Escalations'!$E$21*(1+'Cost Escalations'!E26) -> 7975212.334 | F6: ='EGX - Forecast capex scenarios'!J146*'Cost Escalations'!$E$21*(1+'Cost Escalations'!F26) -> 8109358.518
A7: Materials | B7: ='EGX - Forecast capex scenarios'!F145*'Cost Escalations'!$E$21 -> 21476325.09 | C7: ='EGX - Forecast capex scenarios'!G145*'Cost Escalations'!$E$21 -> 21492199.8 | D7: ='EGX - Forecast capex scenarios'!H145*'Cost Escalations'!$E$21 -> 21508074.51 | E7: ='EGX - Forecast capex scenarios'!I145*'Cost Escalations'!$E$21 -> 21523949.22 | F7: ='EGX - Forecast capex scenarios'!J145*'Cost Escalations'!$E$21 -> 21543581.39
A8: Total Direct Costs | B8: =SUM(B5:B7) -> 29463496.51 | C8: 29582322.99 | D8: 29693761.39 | E8: 29830852.97 | F8: 29995314.47
A10: Overheads & Oncosts | H10: Note: application of the overhead and on-cost rates in accordance with the EQL's Cost Allocation Methodology
A11: Fleet oncost | B11: =B5*Overheads!$D$15 -> 64609.05948 | C11: =C5*Overheads!$D$15 -> 66518.76292 | D11: =D5*Overheads!$D$15 -> 68318.53553 | E11: =E5*Overheads!$D$15 -> 70199.28549 | F11: =F5*Overheads!$D$15 -> 72460.26864
A12: Material oncosts | B12: =B7*Overheads!$D$9 -> 1872030.317 | C12: =C7*Overheads!$D$9 -> 1873414.071 | D12: =D7*Overheads!$D$9 -> 1874797.824 | E12: =E7*Overheads!$D$9 -> 1876181.577 | F12: =F7*Overheads!$D$9 -> 1877892.859
A13: Network overheads | B13: =(B8+B11+B12)*Overheads!$D$19 -> 6244480.235 | C13: =(C8+C11+C12)*Overheads!$D$19 -> 6268765.976 | D13: =(D8+D11+D12)*Overheads!$D$19 -> 6291560.601 | E13: =(E8+E11+E12)*Overheads!$D$19 -> 6319472.925 | F13: =(F8+F11+F12)*Overheads!$D$19 -> 6352969
A14: Non-network overheads | B14: =B5*Overheads!$D$20 -> 133862.2758 | C14: =C5*Overheads!$D$20 -> 137818.9539 | D14: =D5*Overheads!$D$20 -> 141547.8684 | E14: =E5*Overheads!$D$20 -> 145444.5583 | F14: =F5*Overheads!$D$20 -> 150129.046
A15: Non-network depreciation | B15: =B5*Overheads!$D$25 -> 44895.69054 | C15: =C5*Overheads!$D$25 -> 46222.70962 | D15: =D5*Overheads!$D$25 -> 47473.33972 | E15: =E5*Overheads!$D$25 -> 48780.23954 | F15: =F5*Overheads!$D$25 -> 50351.35666
A16: Corporate overheads | B16: =0*Overheads!$D$26 -> 0 | C16: =0*Overheads!$D$26 -> 0 | D16: =0*Overheads!$D$26 -> 0 | E16: =0*Overheads!$D$26 -> 0 | F16: =0*Overheads!$D$26 -> 0 | H16: No allocation of corporate overheads to capex
A17: Market | B17: =0*Overheads!$D$27 -> 0 | C17: =0*Overheads!$D$27 -> 0 | D17: =0*Overheads!$D$27 -> 0 | E17: =0*Overheads!$D$27 -> 0 | F17: =0*Overheads!$D$27 -> 0 | H17: No market allocation to capex
A18: Customer ops | B18: =0*Overheads!$D$28 -> 0 | C18: =0*Overheads!$D$28 -> 0 | D18: =0*Overheads!$D$28 -> 0 | E18: =0*Overheads!$D$28 -> 0 | F18: =0*Overheads!$D$28 -> 0 | H18: No customer operation allocation to capex
A19: Total | B19: =SUM(B11:B18) -> 8359877.578 | C19: 8392740.473 | D19: 8423698.168 | E19: 8460078.586 | F19: 8503802.53
A21: Total Expenditure (incl oncosts and overheads) | B21: =B8+B19 -> 37823374.08 | C21: 37975063.46 | D21: 38117459.55 | E21: 38290931.55 | F21: 38499117
A23: LED | B23: =('EGX - Forecast capex scenarios'!F$147-'EGX - Forecast capex scenarios'!F$54)/'EGX - Forecast capex scenarios'!F$147 -> 1 | C23: =('EGX - Forecast capex scenarios'!G$147-'EGX - Forecast capex scenarios'!G$54)/'EGX - Forecast capex scenarios'!G$147 -> 1 | D23: =('EGX - Forecast capex scenarios'!H$147-'EGX - Forecast capex scenarios'!H$54)/'EGX - Forecast capex scenarios'!H$147 -> 1 | E23: =('EGX - Forecast capex scenarios'!I$147-'EGX - Forecast capex scenarios'!I$54)/'EGX - Forecast capex scenarios'!I$147 -> 1 | F23: =('EGX - Forecast capex scenarios'!J$147-'EGX - Forecast capex scenarios'!J$54)/'EGX - Forecast capex scenarios'!J$147 -> 1
A24: CON | B24: =1-B23 -> 0 | C24: =1-C23 -> 0 | D24: 0 | E24: 0 | F24: 0
A26: LED | B26: =B23*B21 -> 37823374.08 | C26: 37975063.46 | D26: 38117459.55 | E26: 38290931.55 | F26: 38499117
A27: CON | B27: =B24*B21 -> 0 | C27: 0 | D27: 0 | E27: 0 | F27: 0
A29: Immediate Expensing
A31: LED | B31: =B23*B19 -> 8359877.578 | C31: 8392740.473 | D31: 8423698.168 | E31: 8460078.586 | F31: 8503802.53
A32: CON | B32: 0 | C32: 0 | D32: 0 | E32: 0 | F32: 0
A36: 2 - This tables applies the oncosts and overheads to the capex (direct cost) for RATE 1 conversions funded by Energex
B37: 100% LED deployment by 2030
B38: 2025-26 | C38: 2026-27 | D38: 2027-28 | E38: 2028-29 | F38: 2029-30
A39: Direct Costs ($Real 2024-25)
A40: Labour | B40: ='EGX - Forecast capex scenarios'!F138*'Cost Escalations'!$E$21*(1+'Cost Escalations'!B30) -> 305277.6138 | C40: ='EGX - Forecast capex scenarios'!G138*'Cost Escalations'!$E$21*(1+'Cost Escalations'!C30) -> 314300.9569 | D40: ='EGX - Forecast capex scenarios'!H138*'Cost Escalations'!$E$21*(1+'Cost Escalations'!D30) -> 322804.8772 | E40: ='EGX - Forecast capex scenarios'!I138*'Cost Escalations'!$E$21*(1+'Cost Escalations'!E30) -> 331691.4151 | F40: ='EGX - Forecast capex scenarios'!J138*'Cost Escalations'!$E$21*(1+'Cost Escalations'!F30) -> 342374.5538
A41: Contractors | B41: ='EGX - Forecast capex scenarios'!F140*'Cost Escalations'!$E$21*(1+'Cost Escalations'!B26) -> 3679121.02 | C41: ='EGX - Forecast capex scenarios'!G140*'Cost Escalations'!$E$21*(1+'Cost Escalations'!C26) -> 3744629.767 | D41: ='EGX - Forecast capex scenarios'!H140*'Cost Escalations'!$E$21*(1+'Cost Escalations'!D26) -> 3807099.257 | E41: ='EGX - Forecast capex scenarios'!I140*'Cost Escalations'!$E$21*(1+'Cost Escalations'!E26) -> 3882116.389 | F41: ='EGX - Forecast capex scenarios'!J140*'Cost Escalations'!$E$21*(1+'Cost Escalations'!F26) -> 3971647.827
A42: Materials | B42: ='EGX - Forecast capex scenarios'!F139*'Cost Escalations'!$E$21 -> 7428413.862 | C42: ='EGX - Forecast capex scenarios'!G139*'Cost Escalations'!$E$21 -> 7444288.573 | D42: ='EGX - Forecast capex scenarios'!H139*'Cost Escalations'!$E$21 -> 7460163.283 | E42: ='EGX - Forecast capex scenarios'!I139*'Cost Escalations'!$E$21 -> 7476037.993 | F42: ='EGX - Forecast capex scenarios'!J139*'Cost Escalations'!$E$21 -> 7495670.169
A43: Total Direct Costs | B43: =SUM(B40:B42) -> 11412812.5 | C43: 11503219.3 | D43: 11590067.42 | E43: 11689845.8 | F43: 11809692.55
A45: Overheads & Oncosts
A46: Fleet oncost | B46: =B40*Overheads!$D$15 -> 64609.05948 | C46: =C40*Overheads!$D$15 -> 66518.76292 | D46: =D40*Overheads!$D$15 -> 68318.53553 | E46: =E40*Overheads!$D$15 -> 70199.28549 | F46: =F40*Overheads!$D$15 -> 72460.26864
A47: Material oncosts | B47: =B42*Overheads!$D$9 -> 647513.7577 | C47: =C42*Overheads!$D$9 -> 648897.5111 | D47: =D42*Overheads!$D$9 -> 650281.2646 | E47: =E42*Overheads!$D$9 -> 651665.018 | F47: =F42*Overheads!$D$9 -> 653376.299
A48: Network overheads | B48: =(B43+B46+B47)*Overheads!$D$19 -> 2411260.868 | C48: =(C43+C46+C47)*Overheads!$D$19 -> 2429894.845 | D48: =(D43+D46+D47)*Overheads!$D$19 -> 2447799.253 | E48: =(E43+E46+E47)*Overheads!$D$19 -> 2468291.178 | F48: =(F43+F46+F47)*Overheads!$D$19 -> 2492914.811
A49: Non-network overheads | B49: =B40*Overheads!$D$20 -> 133862.2758 | C49: =C40*Overheads!$D$20 -> 137818.9539 | D49: =D40*Overheads!$D$20 -> 141547.8684 | E49: =E40*Overheads!$D$20 -> 145444.5583 | F49: =F40*Overheads!$D$20 -> 150129.046
A50: Non-network depreciation | B50: =B40*Overheads!$D$25 -> 44895.69054 | C50: =C40*Overheads!$D$25 -> 46222.70962 | D50: =D40*Overheads!$D$25 -> 47473.33972 | E50: =E40*Overheads!$D$25 -> 48780.23954 | F50: =F40*Overheads!$D$25 -> 50351.35666
A51: Corporate overheads | B51: =0*Overheads!$D$26 -> 0 | C51: =0*Overheads!$D$26 -> 0 | D51: =0*Overheads!$D$26 -> 0 | E51: =0*Overheads!$D$26 -> 0 | F51: =0*Overheads!$D$26 -> 0 | H51: No allocation of corporate overheads to capex
A52: Market | B52: =0*Overheads!$D$27 -> 0 | C52: =0*Overheads!$D$27 -> 0 | D52: =0*Overheads!$D$27 -> 0 | E52: =0*Overheads!$D$27 -> 0 | F52: =0*Overheads!$D$27 -> 0 | H52: No market allocation to capex
A53: Customer ops | B53: =0*Overheads!$D$28 -> 0 | C53: =0*Overheads!$D$28 -> 0 | D53: =0*Overheads!$D$28 -> 0 | E53: =0*Overheads!$D$28 -> 0 | F53: =0*Overheads!$D$28 -> 0 | H53: No customer operation allocation to capex
A54: Total | B54: =SUM(B46:B53) -> 3302141.652 | C54: =SUM(C46:C53) -> 3329352.783 | D54: =SUM(D46:D53) -> 3355420.261 | E54: =SUM(E46:E53) -> 3384380.28 | F54: =SUM(F46:F53) -> 3419231.781
A56: Total Expenditure (incl oncosts and overheads) | B56: =B43+B54 -> 14714954.15 | C56: 14832572.08 | D56: 14945487.68 | E56: 15074226.08 | F56: =F43+F54 -> 15228924.33
A59: 3 - This tables applies the oncosts and overheads to the capex (direct cost) for RATE 2A conversions funded by Energex
B60: 100% LED deployment by 2030
B61: 2025-26 | C61: 2026-27 | D61: 2027-28 | E61: 2028-29 | F61: 2029-30
A62: Direct Costs ($Real 2024-25)
A63: Labour | B63: ='EGX - Forecast capex scenarios'!F141*'Cost Escalations'!$E$21*(1+'Cost Escalations'!B30) -> 0 | C63: ='EGX - Forecast capex scenarios'!G141*'Cost Escalations'!$E$21*(1+'Cost Escalations'!C30) -> 0 | D63: ='EGX - Forecast capex scenarios'!H141*'Cost Escalations'!$E$21*(1+'Cost Escalations'!D30) -> 0 | E63: ='EGX - Forecast capex scenarios'!I141*'Cost Escalations'!$E$21*(1+'Cost Escalations'!E30) -> 0 | F63: ='EGX - Forecast capex scenarios'!J141*'Cost Escalations'!$E$21*(1+'Cost Escalations'!F30) -> 0
A64: Contractors | B64: ='EGX - Forecast capex scenarios'!F143*'Cost Escalations'!$E$21*(1+'Cost Escalations'!B26) -> 4002772.783 | C64: ='EGX - Forecast capex scenarios'!G143*'Cost Escalations'!$E$21*(1+'Cost Escalations'!C26) -> 4031192.47 | D64: ='EGX - Forecast capex scenarios'!H143*'Cost Escalations'!$E$21*(1+'Cost Escalations'!D26) -> 4055782.744 | E64: ='EGX - Forecast capex scenarios'!I143*'Cost Escalations'!$E$21*(1+'Cost Escalations'!E26) -> 4093095.945 | F64: ='EGX - Forecast capex scenarios'!J143*'Cost Escalations'!$E$21*(1+'Cost Escalations'!F26) -> 4137710.691
A65: Materials | B65: ='EGX - Forecast capex scenarios'!F142*'Cost Escalations'!$E$21 -> 14047911.23 | C65: ='EGX - Forecast capex scenarios'!G142*'Cost Escalations'!$E$21 -> 14047911.23 | D65: ='EGX - Forecast capex scenarios'!H142*'Cost Escalations'!$E$21 -> 14047911.23 | E65: ='EGX - Forecast capex scenarios'!I142*'Cost Escalations'!$E$21 -> 14047911.23 | F65: ='EGX - Forecast capex scenarios'!J142*'Cost Escalations'!$E$21 -> 14047911.23
A66: Total Direct Costs | B66: =SUM(B63:B65) -> 18050684.01 | C66: 18079103.7 | D66: 18103693.97 | E66: 18141007.17 | F66: 18185621.92
A68: Overheads & Oncosts
A69: Fleet oncost | B69: =B63*Overheads!$D$15 -> 0 | C69: =C63*Overheads!$D$15 -> 0 | D69: =D63*Overheads!$D$15 -> 0 | E69: =E63*Overheads!$D$15 -> 0 | F69: =F63*Overheads!$D$15 -> 0
A70: Material oncosts | B70: =B65*Overheads!$D$9 -> 1224516.56 | C70: =C65*Overheads!$D$9 -> 1224516.56 | D70: =D65*Overheads!$D$9 -> 1224516.56 | E70: =E65*Overheads!$D$9 -> 1224516.56 | F70: =F65*Overheads!$D$9 -> 1224516.56
A71: Network overheads | B71: =(B66+B69+B70)*Overheads!$D$19 -> 3833219.366 | C71: =(C66+C69+C70)*Overheads!$D$19 -> 3838871.131 | D71: =(D66+D69+D70)*Overheads!$D$19 -> 3843761.348 | E71: =(E66+E69+E70)*Overheads!$D$19 -> 3851181.747 | F71: =(F66+F69+F70)*Overheads!$D$19 -> 3860054.19
A72: Non-network overheads | B72: =B63*Overheads!$D$20 -> 0 | C72: =C63*Overheads!$D$20 -> 0 | D72: =D63*Overheads!$D$20 -> 0 | E72: =E63*Overheads!$D$20 -> 0 | F72: =F63*Overheads!$D$20 -> 0
A73: Non-network depreciation | B73: =B63*Overheads!$D$25 -> 0 | C73: =C63*Overheads!$D$25 -> 0 | D73: =D63*Overheads!$D$25 -> 0 | E73: =E63*Overheads!$D$25 -> 0 | F73: =F63*Overheads!$D$25 -> 0
A74: Corporate overheads | B74: =0*Overheads!$D$26 -> 0 | C74: =0*Overheads!$D$26 -> 0 | D74: =0*Overheads!$D$26 -> 0 | E74: =0*Overheads!$D$26 -> 0 | F74: =0*Overheads!$D$26 -> 0
A75: Market | B75: =0*Overheads!$D$27 -> 0 | C75: =0*Overheads!$D$27 -> 0 | D75: =0*Overheads!$D$27 -> 0 | E75: =0*Overheads!$D$27 -> 0 | F75: =0*Overheads!$D$27 -> 0
A76: Customer ops | B76: =0*Overheads!$D$28 -> 0 | C76: =0*Overheads!$D$28 -> 0 | D76: =0*Overheads!$D$28 -> 0 | E76: =0*Overheads!$D$28 -> 0 | F76: =0*Overheads!$D$28 -> 0
A77: Total | B77: =SUM(B69:B76) -> 5057735.926 | C77: =SUM(C69:C76) -> 5063387.69 | D77: =SUM(D69:D76) -> 5068277.907 | E77: =SUM(E69:E76) -> 5075698.307 | F77: =SUM(F69:F76) -> 5084570.749
A79: Total Expenditure (incl oncosts and overheads) | B79: =B66+B77 -> 23108419.93 | C79: 23142491.39 | D79: 23171971.88 | E79: 23216705.48 | F79: =F66+F77 -> 23270192.67
B81: =B56+B79 -> 37823374.08 | C81: =C56+C79 -> 37975063.46 | D81: 38117459.55 | E81: 38290931.55 | F81: 38499117
B82: =B21-B81 -> 0 | C82: =C21-C81 -> 0 | D82: 0 | E82: 0 | F82: 0

Sheet >>Forecast opex

Sheet EGX - Opex BST
A1: Energex - Factors for the Base Step Trend Approach used to derive forecast opex
A3: Table 1: Forecast Volume of LED and CONV Lights
A4: Volumes | B4: 2021-22 | C4: 2022-23 | D4: 2024-25 | E4: 2025-26 | F4: 2026-27 | G4: 2027-28 | H4: 2028-29 | I4: 2029-30
A5: Conventional | E5: ='EGX - Yearly volume scenarios'!K83 -> 160336 | F5: ='EGX - Yearly volume scenarios'!L83 -> 120253 | G5: ='EGX - Yearly volume scenarios'!M83 -> 80169 | H5: ='EGX - Yearly volume scenarios'!N83 -> 40084 | I5: ='EGX - Yearly volume scenarios'!O83 -> 0
A6: LED | E6: ='EGX - Yearly volume scenarios'!K84+'EGX - Yearly volume scenarios'!K104 -> 204871 | F6: ='EGX - Yearly volume scenarios'!L84+'EGX - Yearly volume scenarios'!L104 -> 245489 | G6: ='EGX - Yearly volume scenarios'!M84+'EGX - Yearly volume scenarios'!M104 -> 286117 | H6: ='EGX - Yearly volume scenarios'!N84+'EGX - Yearly volume scenarios'!N104 -> 326756 | I6: ='EGX - Yearly volume scenarios'!O84+'EGX - Yearly volume scenarios'!O104 -> 367404
A7: Total | E7: =SUM(E5:E6) -> 365207 | F7: =SUM(F5:F6) -> 365742 | G7: =SUM(G5:G6) -> 366286 | H7: =SUM(H5:H6) -> 366840 | I7: =SUM(I5:I6) -> 367404
A9: Table 2: Base Step Trend approach
A10: 2a: Forecast Price Change
A11: Rate | B11: 2021-22 | C11: 2022-23 | D11: 2024-25 | E11: 2025-26 | F11: 2026-27 | G11: 2027-28 | H11: 2028-29 | I11: 2029-30
A12: Labour | E12: ='Cost Escalations'!B29 -> 0.01108542632 | F12: ='Cost Escalations'!C29 -> 0.01087009067 | G12: ='Cost Escalations'!D29 -> 0.008746627838 | H12: ='Cost Escalations'!E29 -> 0.009531573652 | I12: ='Cost Escalations'!F29 -> 0.01151592523
A13: Contractor | E13: ='Cost Escalations'!B25 -> 0.0105 | F13: ='Cost Escalations'!C25 -> 0.0071 | G13: ='Cost Escalations'!D25 -> 0.0061 | H13: ='Cost Escalations'!E25 -> 0.0092 | I13: ='Cost Escalations'!F25 -> 0.0109
A14: Materials/other | E14: 0 | F14: 0 | G14: 0 | H14: 0 | I14: 0
A16: 2b: Weights
A17: Rate | B17: 2021-22 | C17: 2022-23 | D17: 2024-25 | E17: 2025-26 | F17: 2026-27 | G17: 2027-28 | H17: 2028-29 | I17: 2029-30
A18: Labour | E18: =SUM('EGX - Forecast Opex'!B4,'EGX - Forecast Opex'!B9)/(SUM('EGX - Forecast Opex'!B4:B12)-'EGX - Forecast Opex'!B15) -> 0.114954665 | F18: =E18 -> 0.114954665 | G18: 0.114954665 | H18: 0.114954665 | I18: 0.114954665
A19: Contractor | E19: =SUM('EGX - Forecast Opex'!B5,'EGX - Forecast Opex'!B10)/(SUM('EGX - Forecast Opex'!B4:B12)-'EGX - Forecast Opex'!B15) -> 0.6365563133 | F19: 0.6365563133 | G19: 0.6365563133 | H19: 0.6365563133 | I19: 0.6365563133
A20: Materials/other | E20: =(SUM('EGX - Forecast Opex'!B6,'EGX - Forecast Opex'!B7,'EGX - Forecast Opex'!B11,'EGX - Forecast Opex'!B12)-'EGX - Forecast Opex'!B15)/(SUM('EGX - Forecast Opex'!B3:B12)-'EGX - Forecast Opex'!B15) -> 0.2484890217 | F20: 0.2484890217 | G20: 0.2484890217 | H20: 0.2484890217 | I20: 0.2484890217
A22: 2c: Price Change
A23: Rate | B23: 2021-22 | C23: 2022-23 | D23: 2024-25 | E23: 2025-26 | F23: 2026-27 | G23: 2027-28 | H23: 2028-29 | I23: 2029-30
A24: Rate | E24: =SUMPRODUCT(E12:E14,E18:E20) -> 0.007958162758 | F24: =SUMPRODUCT(F12:F14,F18:F20) -> 0.005769117456 | G24: =SUMPRODUCT(G12:G14,G18:G20) -> 0.004888459184 | H24: =SUMPRODUCT(H12:H14,H18:H20) -> 0.006952016939 | I24: =SUMPRODUCT(I12:I14,I18:I20) -> 0.008262273142
A26: 2d: Forecast Output Growth
A27: Rate | B27: 2021-22 | C27: 2022-23 | D27: 2024-25 | E27: 2025-26 | F27: 2026-27 | G27: 2027-28 | H27: 2028-29 | I27: 2029-30
A28: Light Population | D28: ='EGX - Yearly volume scenarios'!J85 -> 351659 | E28: ='EGX - Yearly volume scenarios'!K85+'EGX - Yearly volume scenarios'!K104 -> 365207 | F28: ='EGX - Yearly volume scenarios'!L85+'EGX - Yearly volume scenarios'!L104 -> 365742 | G28: ='EGX - Yearly volume scenarios'!M85+'EGX - Yearly volume scenarios'!M104 -> 366286 | H28: ='EGX - Yearly volume scenarios'!N85+'EGX - Yearly volume scenarios'!N104 -> 366840 | I28: ='EGX - Yearly volume scenarios'!O85+'EGX - Yearly volume scenarios'!O104 -> 367404
A29: Growth Rate | E29: =LN(E28)-LN(D28) -> 0.03780236006 | F29: =LN(F28)-LN(E28) -> 0.001463850681 | G29: =LN(G28)-LN(F28) -> 0.001486282219 | H29: =LN(H28)-LN(G28) -> 0.001511336675 | I29: =LN(I28)-LN(H28) -> 0.001536274347
A30: Factor | D30: =1-(SUM('EGX - Forecast Opex'!C4:C7)/SUM('EGX - Forecast Opex'!C3:C12)) -> 0.2055334709 | E30: =SUMPRODUCT($D$30,E29) -> 0.007769650272 | F30: =SUMPRODUCT($D$30,F29) -> 0.0003008703113 | G30: =SUMPRODUCT($D$30,G29) -> 0.0003054807432 | H30: =SUMPRODUCT($D$30,H29) -> 0.0003106302724 | I30: =SUMPRODUCT($D$30,I29) -> 0.0003157557989
A32: 2e: Productivity Factor
A33: Rate | B33: 2021-22 | C33: 2022-23 | D33: 2024-25 | E33: 2025-26 | F33: 2026-27 | G33: 2027-28 | H33: 2028-29 | I33: 2029-30
A34: Rate | D34: 0.04 | E34: =D34 -> 0.04 | F34: =E34 -> 0.04 | G34: 0.04 | H34: 0.04 | I34: 0.04
A36: 2f: Forecast Rate of Change
A37: Rate | B37: 2021-22 | C37: 2022-23 | D37: 2024-25 | E37: 2025-26 | F37: 2026-27 | G37: 2027-28 | H37: 2028-29 | I37: 2029-30
A38: Rate of Change - year on year | E38: =(1+E24)*(1+E30)*(1-E34)-1 -> -0.02484194064 | F38: =(1+F24)*(1+F30)*(1-F34)-1 -> -0.03417114542 | G38: =(1+G24)*(1+G30)*(1-G34)-1 -> -0.03501238407 | H38: =(1+H24)*(1+H30)*(1-H34)-1 -> -0.03302578555 | I38: =(1+I24)*(1+I30)*(1-I34)-1 -> -0.03176258771
A39: Rate of Change - Cumulative | E39: =PRODUCT(1+$D38:E38)-1 -> -0.02484194064 | F39: =PRODUCT(1+$D38:F38)-1 -> -0.05816420849 | G39: =PRODUCT(1+$D38:G38)-1 -> -0.09114012495 | H39: =PRODUCT(1+$D38:H38)-1 -> -0.1211559363 | I39: =PRODUCT(1+$D38:I38)-1 -> -0.1490702979

Sheet EGX - Forecast Opex
A1: Table 1 - Opex Direct Costs | B1: Actual | C1: Forecast
A2: Opex Direct Costs | B2: 2022-23 | C2: 2024-25 | D2: 2025-26 | E2: 2026-27 | F2: 2027-28 | G2: 2028-29 | H2: 2029-30
A3: Maintenance | B3: Adjusted
A4: Labour | B4: 871863.59 | C4: =B4*'Cost Escalations'!$E$21 -> 954110.7393
A5: Contractor | B5: 6530695.45 | C5: =B5*'Cost Escalations'!$E$21 -> 7146767.838
A6: Materials | B6: 1898621.26 | C6: =B6*'Cost Escalations'!$E$21 -> 2077727.473
A7: Other | B7: 1011.36 | C7: =B7*'Cost Escalations'!$E$21 -> 1106.766527
A8: Damage/Emergency
A9: Labour | B9: 554577.46 | C9: =B9*'Cost Escalations'!$E$21 -> 606893.4595
A10: Contractor | B10: 1368158.03 | C10: =B10*'Cost Escalations'!$E$21 -> 1497223.057
A11: Materials | B11: 476783.69 | C11: =B11*'Cost Escalations'!$E$21 -> 521761.0233
A12: Other | B12: 7016.11 | C12: =B12*'Cost Escalations'!$E$21 -> 7677.973912
A13: Total direct opex | B13: 11708726.95 | C13: =SUM(C4:C12) -> 12813268.33
A14: Adjustments (material costs)
A15: LED Lamps | B15: -700000 | C15: =B15*'Cost Escalations'!$E$21 -> -766034.4177
A16: Base Opex | B16: =+B15+B13 -> 11008726.95 | C16: =C13+C15 -> 12047233.91
A17: Notes:
A18: Material costs removed to reflect the fact that, upon failure, the LED luminaire is replaced and becomes capex
A20: Overheads & Oncosts
A21: Labour oncost | C21: 0
A22: Fleet oncost | C22: =(C4+C9)*Overheads!D15 -> 330371.467
A23: Material oncosts | C23: =(C6+C11+C15)*Overheads!D9 -> 159816.9895
A24: Network overheads | C24: =(C16+C21+C22+C23)*Overheads!D19 -> 2493291.318
A25: Non-network overheads | C25: =(C4+C9)*Overheads!D20 -> 684490.3298
A26: Non-network depreciation | C26: =(C4+C9)*Overheads!D25 -> 229569.2781
A27: Corporate overheads | C27: =($C$16+$C$22+$C$23)*Overheads!D26 -> 1579280.152
A28: Market | C28: =($C$16+$C$22+$C$23)*Overheads!D27 -> 90776.42989
A29: Customer ops | C29: =($C$16+$C$22+$C$23)*Overheads!D28 -> 759986.4035
A30: Total | C30: =SUM(C21:C29) -> 6327582.368
A31: Base Opex (Gross) | C31: =C16+C30 -> 18374816.28
A33: Table 2 - Forecast Opex (Gross)
A34: Forecast opex | B34: 2022-23 | C34: 2024-25 | D34: 2025-26 | E34: 2026-27 | F34: 2027-28 | G34: 2028-29 | H34: 2029-30
A35: CONV opex | D35: =D37/('EGX - Opex BST'!E5+'EGX - Opex BST'!E6/0.82)*'EGX - Opex BST'!E5 -> 7004158.712 | E35: =E37/('EGX - Opex BST'!F5+'EGX - Opex BST'!F6/0.82)*'EGX - Opex BST'!F5 -> 4959384.305 | F35: =F37/('EGX - Opex BST'!G5+'EGX - Opex BST'!G6/0.82)*'EGX - Opex BST'!G5 -> 3120152.434 | G35: =G37/('EGX - Opex BST'!H5+'EGX - Opex BST'!H6/0.82)*'EGX - Opex BST'!H5 -> 1475944.425 | H35: =H37/('EGX - Opex BST'!I5+'EGX - Opex BST'!I6/0.82)*'EGX - Opex BST'!I5 -> 0
A36: LED opex | D36: =D37-D35 -> 10914191.47 | E36: =E37-E35 -> 12346675.33 | F36: 13579980.8 | G36: 14672653.79 | H36: 15635676.94
A37: Total | D37: =C31*(1+'EGX - Opex BST'!E39) -> 17918350.19 | E37: =$C$31*(1+'EGX - Opex BST'!F39) -> 17306059.64 | F37: =$C$31*(1+'EGX - Opex BST'!G39) -> 16700133.23 | G37: =$C$31*(1+'EGX - Opex BST'!H39) -> 16148598.21 | H37: =$C$31*(1+'EGX - Opex BST'!I39) -> 15635676.94
